{"text_format":"1","workbook":"xlsx","n_sheets":13,"sheets":["Read Me First-ส่วนราชการ","Read Me First-ผู้ตรวจ","สรุปผลการตรวจ"," ชื่อหน่วยงาน","หมวด 1","หมวด 2","หมวด 3","หมวด 4","หมวด 5","หมวด 6","หมวด 7","Chart","Sheet2"],"not_rendered":{"charts":8,"images":8,"macros":1,"external_links":3,"defined_names":45,"comments":0,"pivot_tables":0},"unopened":[],"bounds":{"document_bytes":16777216,"sheet_cells":100000,"rows_first":2000,"rows_last":500,"rows_between":2000,"halvings":0,"cell_chars":16384,"cell_head_chars":4096},"cells_cut":0,"cells_raw":0,"read":"whole","date_system":"1900"}

{"sheet":"Read Me First-ส่วนราชการ","index":0,"n_rows":80,"n_cols":26,"rows_kept":80,"cut":false,"hidden":false,"merged":[[17,2,17,23],[1,2,1,21],[2,2,3,23],[6,2,12,23],[14,2,14,15],[16,2,16,23],[19,2,19,15],[21,2,21,3],[25,2,25,3],[35,4,35,5],[43,2,43,3],[43,4,44,23],[75,2,76,23],[46,2,47,23],[62,2,62,3],[62,4,63,23],[64,4,65,23],[72,2,72,3],[72,4,73,23]]}
[]
[null,null,"วิธีการใช้งาน"]
[null,null,"โปรแกรมคำนวณผลการประเมินองค์กรด้วยตนเองเพื่อรับรองการผ่านเกณฑ์คุณภาพการบริหารจัดการภาครัฐระดับพื้นฐาน ฉบับที่ 2 \n(Certified Fundamental  Level ฉบับที่ 2)"]
[]
[]
[]
[null,null,"ขั้นตอนของการพัฒนาส่วนราชการประกอบด้วย \n1. การศึกษาและทำความเข้าใจเกณฑ์คุณภาพการบริหารจัดการภาครัฐในระดับพื้นฐาน\n2. การประเมินตนเองตามเกณฑ์เพื่อหาจุดแข็งและโอกาสในการปรับปรุง \n3. นำโอกาสในการปรับปรุงไปจัดทำแผนพัฒนาองค์การ \n4. ดำเนินการตามแผนพัฒนาองค์การอย่างเป็นระบบ \nและ 5. ทบทวนผลการปรับปรุงเพื่อนำไปปรับปรุงต่อไป  \nโปรแกรมสำเร็จรูปสำหรับการประเมินส่วนราชการที่จัดทำขึ้นนี้จะช่วยให้ส่วนราชการสามารถตรวจสอบด้วยตนเองว่าส่วนราชการได้พัฒนาองค์การตามเกณฑ์คุณภาพการบริหารจัดการภาครัฐระดับพื้นฐาน ฉบับที่ 2 (Certified Fundamental  Level ฉบับที่ 2) ที่กำหนดไว้หรือไม่ โดยพิจารณาจาก  \"ประเด็นย่อยการพิจารณา\"  ของกิจกรรมที่ส่วนราชการระดับกรม/จังหวัดต้องดำเนินการให้ครบถ้วนในหมวด 1-6 (กระบวนการ)   และการวัดระดับความสำเร็จของตัวชี้วัดซึ่งเป็นผลลัพธ์ของกระบวนการเพื่อรายงานในหมวด 7 "]
[]
[]
[]
[]
[]
[]
[]
[null,null,"วัตถุประสงค์"]
[]
[null,null,"1. เพื่อใช้เป็นเครื่องมือให้กับส่วนราชการระดับกรม/จังหวัดในการประเมินองค์กรด้วยตนเอง หมวด 1-7  ตามเกณฑ์คุณภาพการบริหารจัดการภาครัฐระดับพื้นฐาน ฉบับที่ 2 (Certified Fundamental  Level ฉบับที่ 2)"]
[null,null,"2.  เพื่อพัฒนาระบบประเมินองค์กรด้วยตนเอง  โดยใช้โปรแกรม Excel"]
[]
[null,null,"แนวทาง/ขั้นตอนการดำเนินการ และการใช้แบบฟอร์ม"]
[]
[null,null,"ขั้นตอนที่ 1",null,"เปิด Sheet ตามหมวดต่าง ๆ ซึ่งส่วนราชการระดับกรม/จังหวัด ประเมินทุกหมวด"]
[]
[]
[]
[null,null,"ขั้นตอนที่ 2",null,"ส่วนราชการระดับกรม/จังหวัดศึกษาเกณฑ์  วิเคราะห์การดำเนินงานขององค์กรตามประเด็นที่กำหนดไว้ใน Column \"ประเด็นการพิจารณาการดำเนินการที่ครบถ้วน\"  "]
[]
[]
[]
[]
[]
[]
[]
[]
[]
[]
[]
[]
[]
[]
[]
[]
[]
[null,null,"ขั้นตอนที่ 3",null,"หากส่วนราชการระดับกรม/จังหวัด  ได้มีการดำเนินการตามประเด็นที่กำหนดไว้อย่างครบถ้วน ให้กดปุ่ม  \"ใช่\"  กรณีที่ไม่ได้ดำเนินการตามประเด็นที่ระบุไว้อย่างครบถ้วน ให้กดปุ่ม \"ไม่ใช่\" "]
[]
[]
[null,null,"ข้อควรระวัง  ในกรณีที่ ไม่ได้มีการกดปุ่ม \"ใช่\" หรือ  \"ไม่ใช่\" ปุ่มใดปุ่มหนึ่ง หรือกดปุ่ม \"ใช่\" และ  \"ไม่ใช่\"  พร้อมกันทั้งสองปุ่ม  ในช่องคะแนนจะปรากฎข้อความ \"ข้อมูลผิด\" ขึ้น  และไม่ปรากฎค่าคะแนนในช่องแสดงคะแนน"]
[]
[]
[]
[]
[]
[]
[]
[]
[]
[]
[]
[]
[]
[]
[]
[null,null,"ขั้นตอนที่ 4",null,"ให้ส่วนราชการระดับกรม/จังหวัดระบุการดำเนินงานโดยสรุป หรือเอกสารหลักฐานที่แสดงให้เห็นการดำเนินงานของส่วนราชการเพื่อประกอบการประเมินผลการดำเนินงานตามเกณฑ์คุณภาพการบริหารจัดการระดับพื้นฐาน เวอร์ชั่น 2.0 ในช่อง \"คำอธิบายผลการดำเนินการ\""]
[]
[]
[]
[]
[]
[]
[]
[]
[]
[null,null,"ขั้นตอนที่ 5",null,"ในหมวด 7 : ผลลัพธ์  ให้ส่วนราชการกรอกค่าผลการดำเนินงานตามตัวชี้วัดในช่อง \"ผลงาน\" โดยผลงานที่กรอกในช่องดังกล่าวต้องระบุค่าผลการดำเนินงานที่เกิดขึ้นจริงของตัวชี้วัด และโปรแกรมจะทำการคำนวณค่าคะแนนของตัวชี้วัดเปรียบเทียบกับเกณฑ์การให้คะแนนและแสดงผลเป็นคะแนนของตัวชี้วัด (1-5 คะแนน) ในช่อง \"คะแนน\" โดยอัตโนมัติ"]
[]
[]
[null,null,"หมายเหตุ  ส่วนราชการสามารถระบุตัวชี้วัดผลลัพธ์เพิ่มเติมจากตัวชี้วัดที่กำหนดไว้ได้ไม่เกินด้านละ 1 ตัวชี้วัด  โดยส่วนราชการต้องระบุชื่อตัวชี้วัด เกณฑ์การให้คะแนน (1-5) และผลงานของตัวชี้วัดให้เห็นอย่างชัดเจน ทั้งนี้ตัวชี้วัดดังกล่าว ผู้ประเมินจะพิจารณาความเหมาะสมของตัวชี้วัดดังกล่าวประกอบการประเมินผล"]
[]
[]
[]
[null,null,null,null,null,null,null,null,null,null,null,null,null,null,null,null,null,null,null,null,null,null,null,null,null," "]

{"sheet":"Read Me First-ผู้ตรวจ","index":1,"n_rows":36,"n_cols":5,"rows_kept":36,"cut":false,"hidden":true,"merged":[[8,2,8,3],[6,21,7,23],[6,2,6,15],[20,2,20,3],[1,2,1,21],[2,2,3,23]]}
[]
[null,null,"วิธีการใช้งาน (ผู้ตรวจประเมิน)"]
[null,null,"โปรแกรมคำนวณผลการประเมินองค์กรด้วยตนเองเพื่อรับรองการผ่านเกณฑ์คุณภาพการบริหารจัดการภาครัฐระดับพื้นฐาน ฉบับที่ 2\n(Certified Fundamental  Level  ฉบับที่ 2)"]
[]
[]
[]
[null,null,"แนวทาง/ขั้นตอนการดำเนินการ และการใช้แบบฟอร์ม"]
[]
[null,null,"ขั้นตอนที่ 1",null,"เปิด Sheet Read Me First ผู้ตรวจ"]
[null,null,null,null,"ใส่เครื่องหมาย \"Y\" ลงในช่องทางด้านขวา โปรแกรมจะแสดงประเด็นสำคัญสำหรับผู้ตรวจ โดยแสดงสีเหลือง และข้อความขีดเส้นใต้ โดยอัตโนมัติ"]
[]
[]
[]
[]
[]
[]
[]
[]
[]
[]
[null,null,"ขั้นตอนที่ 2",null,"เปิด Sheet ตามหมวดต่าง ๆ "]
[null,null,null,null,"หมวดที่ 1-6 ผู้ตรวจเน้นการตรวจประเด็นที่เป็นสีเหลืองและขีดเส้นใต้เป็นประเด็นหลัก"]
[null,null,null,null,"กรณีผู้ตรวจมีข้อสังเกต/ข้อเสนอแนะ ให้ผู้ตรวจพิมพ์ข้อสังเกตการตรวจ โดยคลิ๊กข่วาใช้ insert Comment จากช่องนี้ \n"]
[]
[]
[]
[]
[]
[]
[]
[]
[]
[]
[]
[null,null,null,null,"หมวดที่ 7 ผู้ตรวจตรวจสอบผลการดำเนินงานตามตัวชี้วัดที่ระบุไว้"]
[null,null,null,null,"ในกรณีที่ส่วนราชการมีการนำเสนอตัวชี้วัดเพิ่มเติม ให้ผู้ตรวจประเมินพิจารณาความเหมาะสมและคุณภาพของตัวชี้วัดและเกณฑ์การให้คะแนน"]

{"sheet":"สรุปผลการตรวจ","index":2,"n_rows":26,"n_cols":5,"rows_kept":26,"cut":false,"hidden":true,"merged":[[23,1,23,3],[24,1,24,3],[25,1,25,3],[17,1,17,3],[18,1,18,3],[19,1,19,3],[20,1,20,3],[21,1,21,3],[22,1,22,3],[10,0,15,4],[0,0,0,4],[2,0,2,1],[2,2,2,4],[5,0,6,0],[8,0,8,4]]}
["สรุปผลการตรวจรับรองเกณฑ์คุณภาพการบริหารจัดการภาครัฐขั้นพื้นฐาน ฉบับที่ 2\n(Certified FL ฉบับที่ 2)"]
["หน่วยงาน          :"]
["ผู้ตรวจประเมิน     : "]
["วันที่ตรวจประเมิน :  "]
[]
["ผลการตรวจรับรอง","คะแนน","ผ่าน","ไม่ผ่าน","รายละเอียด"]
[null,{"$f":"Sheet2!B72","v":{"$error":"#VALUE!"}},{"$f":"IF(B7>=80%, \"/\", \" \")","v":{"$error":"#VALUE!"}},{"$f":"IF(B7<80%, \"X\", \" \")","v":{"$error":"#VALUE!"}}]
[]
["สรุปผลการตรวจในภาพรวม"]
[]
[]
[]
[]
[]
[]
[]
[]
["หมวด ","จุดเด่น",null,null,"ข้อเสนอแนะเพื่อการปรับปรุงพัฒนา"]
["OP"]
[1]
[2]
[3]
[4]
[5]
[6]
[7]

{"sheet":" ชื่อหน่วยงาน","index":3,"n_rows":11,"n_cols":3,"rows_kept":11,"cut":false,"hidden":false,"merged":[[4,1,5,14],[8,1,8,14],[10,2,14,13]]}
[]
[]
[]
[]
[null,"รายงานการประเมินตนเอง"]
[]
[]
[]
[null,"ของ "]
[]
[null,null,"…………………………"]

{"sheet":"หมวด 1","index":4,"n_rows":40,"n_cols":14,"rows_kept":40,"cut":false,"hidden":false,"merged":[[2,0,3,0],[2,1,3,1],[4,0,10,0],[5,2,6,2],[7,2,9,2],[4,1,10,1],[14,2,16,2],[20,2,22,2],[11,0,17,0],[11,1,17,1],[18,0,23,0],[39,4,39,5],[39,6,39,7],[18,1,23,1],[2,4,3,7],[10,4,10,5],[10,6,10,7],[17,4,17,5],[17,6,17,7],[23,4,23,5],[23,6,23,7],[25,2,26,2],[27,2,30,2],[32,2,33,2],[31,4,31,5],[31,6,31,7],[12,2,13,2],[32,1,38,1],[38,4,38,5],[34,2,35,2],[36,2,37,2],[38,6,38,7],[36,8,37,8],[2,2,3,3],[1,0,1,3],[20,8,22,8],[25,8,26,8],[27,8,30,8],[32,8,33,8],[34,8,35,8],[2,8,3,8],[5,8,6,8],[7,8,9,8],[12,8,13,8],[14,8,16,8],[24,0,31,0],[24,1,31,1],[32,0,38,0]]}
[]
["หมวด 1 การนำองค์การ"]
["รหัส","แนวทางการดำเนินการ","ประเด็นการพิจารณาการดำเนินการที่ครบถ้วน",null,"การดำเนินการ",null,null,null,"คำอธิบายผลการดำเนินการ"]
[]
["LD1","ผู้บริหารของส่วนราชการดำเนินการกำหนดวิสัยทัศน์และค่านิยม โดยมุ่งเน้นผู้รับบริการและผู้มีส่วนได้ส่วนเสีย และดำเนินการถ่ายทอดวิสัยทัศน์และค่านิยมสู่การปฏิบัติโดยผ่านระบบการนำองค์การไปยังบุคลากรในส่วนราชการ ส่วนราชการหรือองค์การที่เกี่ยวข้องกันในการให้บริการ หรือส่งมอบงานต่อกันที่สำคัญ และผู้รับบริการและผู้มีส่วนได้ส่วนเสีย","A\n(0.4)","· แนวทางและวิธีการของผู้บริหารที่มีบทบาทหลักในการกำหนดวิสัยทัศน์และค่านิยม และการสื่อสารถ่ายทอดวิสัยทัศน์และค่านิยมดังกล่าว",null,"\nใช่",null,"\nไม่ใช่",null,false,false,{"$f":"IF(J5=K5,\"Error\",IF(J5=TRUE, 5, 1))","v":"Error"},0.4,{"$f":"IF(L5=\"Error\",\"ข้อมูลผิด\", (L5*M5))","v":"ข้อมูลผิด"}]
[null,null,"D\n(0.3)","· ผู้บริหารของส่วนราชการมีการกำหนดวิสัยทัศน์และค่านิยมโดยมุ่งเน้นผู้รับบริการและผู้มีส่วนได้ส่วนเสีย",null,"\nใช่",null,"\nไม่ใช่",null,false,false,{"$f":"IF(J6=K6,\"Error\",IF(J6=TRUE, 5, 1))","v":"Error"},{"$f":"0.3/2","v":0.15},{"$f":"IF(L6=\"Error\",\"ข้อมูลผิด\", (L6*M6))","v":"ข้อมูลผิด"}]
[null,null,null,"· ผู้บริหารของส่วนราชการมีการดำเนินการสื่อสารไปสู่บุคลากรครอบคลุมทุกคน รวมทั้งผู้รับบริการและผู้มีส่วนได้ส่วนเสียที่สำคัญ",null,"\nใช่",null,"\nไม่ใช่",null,false,false,"Error",{"$f":"0.3/2","v":0.15},"ข้อมูลผิด"]
[null,null,"R/I\n(0.3)","· บุคลากรมีการประพฤติปฏิบัติตามค่านิยม",null,"\nใช่",null,"\nไม่ใช่",null,false,false,"Error",{"$f":"0.3/3","v":9.9999999999999992E-2},"ข้อมูลผิด"]
[null,null,null,"·  ส่วนราชการมีการเชื่อมโยงวิสัยทัศน์และค่านิยมไปสู่ยุทธศาสตร์และแผนปฏิบัติการ และสามารถบรรลุวิสัยทัศน์ และทิศทางที่กำหนดไว้",null,"\nใช่",null,"\nไม่ใช่",null,false,false,"Error",{"$f":"0.3/3","v":9.9999999999999992E-2},"ข้อมูลผิด"]
[null,null,null,"· ทำให้เกิดความร่วมมือระหว่างองค์การที่เกี่ยวข้องและผู้รับบริการและผู้มีส่วนได้ส่วนเสีย",null,"\nใช่",null,"\nไม่ใช่",null,false,false,"Error",{"$f":"0.3/3","v":9.9999999999999992E-2},"ข้อมูลผิด"]
[null,null,null,null,"คะแนน",null,{"$f":"IF(L5=\"error\",\"ข้อมูลผิด\",IF(L6=\"error\",\"ข้อมูลผิด\",IF(L7=\"error\",\"ข้อมูลผิด\",IF(L8=\"error\",\"ข้อมูลผิด\",IF(L9=\"error\",\"ข้อมูลผิด\",IF(L10=\"error\",\"ข้อมูลผิด\", N11))))))","v":"ข้อมูลผิด"},null,null,null,null,null,null,{"$f":"SUM(N5:N10)","v":0}]
["LD2","ผู้บริหารของส่วนราชการแสดงความมุ่งมั่นต่อการประพฤติปฏิบัติตามหลักธรรมาภิบาล","A\n(0.4)","• แนวทางและวิธีการของผู้บริหารของส่วนราชการแสดงความมุ่งมั่นต่อการประพฤติปฏิบัติตามหลักธรรมาภิบาล",null,"\nใช่",null,"\nไม่ใช่",null,false,false,"Error",{"$f":"0.4","v":0.4},{"$f":"L12*M12","v":{"$error":"#VALUE!"}}]
[null,null,"D\n(0.3)","· ผู้บริหารของส่วนราชการให้นโยบาย สร้างบรรยากาศ กำหนดแนวทาง กำกับติดตาม แสดงตนเป็นตัวอย่างที่ดี",null,"\nใช่",null,"\nไม่ใช่",null,false,false,"Error",{"$f":"0.3/2","v":0.15},{"$error":"#VALUE!"}]
[null,null,null,"· ผู้บริหารกำหนดและติดตามตัววัดหรือตัวชี้วัดการประพฤติปฏิบัติตามหลักธรรมาภิบาลขององค์การ",null,"\nใช่",null,"\nไม่ใช่",null,false,false,"Error",{"$f":"0.3/2","v":0.15},{"$error":"#VALUE!"}]
[null,null,"R/I\n(0.3)","· ทำให้มั่นใจว่าพันธกิจและวิสัยทัศน์ของส่วนราชการสอดคล้องไปในแนวทางเดียวกันกับหลักจริยธรรม พฤติกรรมที่มีจริยธรรมควรมีการปฏิบัติต่อผู้มีส่วนได้ส่วนเสียทั้งหมด รวมทั้งผู้ส่งมอบและชุมชนของส่วนราชการ",null,"\nใช่",null,"\nไม่ใช่",null,false,false,"Error",{"$f":"0.3/3","v":9.9999999999999992E-2},{"$error":"#VALUE!"}]
[null,null,null,"· บุคลากรประพฤติปฏิบัติตามหลักธรรมาภิบาลขององค์การ",null,"\nใช่",null,"\nไม่ใช่",null,false,false,"Error",{"$f":"0.3/3","v":9.9999999999999992E-2},{"$error":"#VALUE!"}]
[null,null,null,"· ผู้รับบริการและผู้มีส่วนได้ส่วนเสียรับรู้และเชื่อมั่นด้านธรรมาภิบาลขององค์การ",null,"\nใช่",null,"\nไม่ใช่",null,false,false,"Error",9.9999999999999992E-2,{"$error":"#VALUE!"}]
[null,null,null,null,"คะแนน",null,{"$f":"IF(L12=\"error\",\"ข้อมูลผิด\",IF(L13=\"error\",\"ข้อมูลผิด\",IF(L14=\"error\",\"ข้อมูลผิด\",IF(L15=\"error\",\"ข้อมูลผิด\",IF(L16=\"error\",\"ข้อมูลผิด\",IF(L17=\"error\",\"ข้อมูลผิด\", N18))))))","v":"ข้อมูลผิด"},null,null,null,null,null,null,{"$f":"SUM(N12:N17)","v":{"$error":"#VALUE!"}}]
["LD3","ผู้บริหารของส่วนราชการดำเนินการสร้างสภาพแวดล้อมเพื่อให้เกิดการบรรลุพันธกิจ การปรับปรุงผลการดำเนินการของส่วนราชการ และการเรียนรู้ระดับองค์การและระดับบุคคล","A\n(0.4)","· มีแนวทางและวิธีการสร้างสภาพแวดล้อมภายในองค์การ เช่น การกระจายอำนาจการตัดสินใจ การออกแบบหรือทบทวนระบบงานและรูปแบบการปฏิบัติงาน การปรับปรุงแก้ไขกฎหมาย กฎระเบียบ คำสั่ง การทบทวนผลการดำเนินงาน การสื่อสารที่ชัดเจน และการส่งเสริมให้เกิดกิจกรรมการแลกเปลี่ยนความรู้ทักษะในการปฏิบัติงาน เป็นต้น",null,"\nใช่",null,"\nไม่ใช่",null,false,false,"Error",{"$f":"0.4","v":0.4},{"$f":"L19*M19","v":{"$error":"#VALUE!"}}]
[null,null,"D\n(0.3)","· ผู้บริหารและส่วนราชการดำเนินการตามแผนงาน กิจกรรมในการสร้างสภาพแวดล้อมภายในองค์การ",null,"\nใช่",null,"\nไม่ใช่",null,false,false,"Error",{"$f":"0.3","v":0.3},{"$error":"#VALUE!"}]
[null,null,"R/I\n(0.3)","· ส่วนราชการมีความพร้อมที่จะตอบสนองความจำเป็นในการบรรลุพันธกิจและยุทธศาสตร์ในปัจจุบันและรองรับการเปลี่ยนแปลงในอนาคต",null,"\nใช่",null,"\nไม่ใช่",null,false,false,"Error",{"$f":"0.3/3","v":9.9999999999999992E-2},{"$error":"#VALUE!"}]
[null,null,null,"· ส่วนราชการมีความคล่องตัวในการบริหารงานขององค์การสามารถแก้ไขปัญหาที่ผ่านมา",null,"\nใช่",null,"\nไม่ใช่",null,false,false,"Error",{"$f":"0.3/3","v":9.9999999999999992E-2},{"$error":"#VALUE!"}]
[null,null,null,"· ส่วนราชการนำผลการทบทวนไปปรับปรุงผลการดำเนินการของส่วนราชการ เกิดการเรียนรู้ในระดับองค์การและระดับบุคคล",null,"\nใช่",null,"\nไม่ใช่",null,false,false,"Error",9.9999999999999992E-2,{"$error":"#VALUE!"}]
[null,null,null,null,"คะแนน",null,{"$f":"IF(L18=\"error\",\"ข้อมูลผิด\",IF(L19=\"error\",\"ข้อมูลผิด\",IF(L20=\"error\",\"ข้อมูลผิด\",IF(L21=\"error\",\"ข้อมูลผิด\",IF(L22=\"error\",\"ข้อมูลผิด\",IF(L23=\"error\",\"ข้อมูลผิด\", N24))))))","v":"ข้อมูลผิด"},null,null,null,null,null,null,{"$f":"SUM(N19:N23)","v":{"$error":"#VALUE!"}}]
["LD4","ส่วนราชการมีการดำเนินการระบบการกำกับดูแลองค์การที่ดีในด้านความรับผิดชอบต่อการปฏิบัติงานของส่วนราชการ ความรับผิดชอบด้านการเงิน และการป้องกันการทุจริตและประพฤติมิชอบ","A\n(0.4)","· แนวทางและวิธีการกำกับดูแลองค์การที่ดีในด้านความรับผิดชอบต่อการปฏิบัติงานของส่วนราชการ ความรับผิดชอบด้านการเงิน และการป้องกันการทุจริตและประพฤติมิชอบ",null,"\nใช่",null,"\nไม่ใช่",null,false,false,"Error",{"$f":"0.4","v":0.4},{"$f":"L25*M25","v":{"$error":"#VALUE!"}}]
[null,null,"D/L\n(0.3)","· มีการดำเนินการตามวิธีการในการกำกับดูแลองค์การที่ดี",null,"\nใช่",null,"\nไม่ใช่",null,false,false,"Error",{"$f":"0.3/2","v":0.15},{"$error":"#VALUE!"}]
[null,null,null,"· มีการทบทวนและปรับปรุงวิธีการในการกำกับดูแลองค์การที่ดี",null,"\nใช่",null,"\nไม่ใช่",null,false,false,"Error",{"$f":"0.3/2","v":0.15},{"$error":"#VALUE!"}]
[null,null,"R/I\n(0.3)","· บุคลากรประพฤติปฏิบัติตามกฎหมาย กฎระเบียบที่เกี่ยวข้อง",null,"\nใช่",null,"\nไม่ใช่",null,false,false,"Error",{"$f":"0.3/4","v":7.4999999999999997E-2},{"$error":"#VALUE!"}]
[null,null,null,"· มีความโปร่งใสในการปฏิบัติงาน และมีธรรมาภิบาล ",null,"\nใช่",null,"\nไม่ใช่",null,false,false,"Error",{"$f":"0.3/4","v":7.4999999999999997E-2},{"$error":"#VALUE!"}]
[null,null,null,"· มีความรับผิดชอบ สามารถปฏิบัติอย่างยุติธรรมต่อผู้รับบริการและผู้มีส่วนได้ส่วนเสีย",null,"\nใช่",null,"\nไม่ใช่",null,false,false,"Error",7.4999999999999997E-2,{"$error":"#VALUE!"}]
[null,null,null,"· มีความเชื่อถือของผู้รับบริการและผู้มีส่วนได้ส่วนเสียและสังคม และมีภาพลักษณ์ที่ดี ",null,"\nใช่",null,"\nไม่ใช่",null,false,false,"Error",7.4999999999999997E-2,{"$error":"#VALUE!"}]
[null,null,null,null,"คะแนน",null,{"$f":"IF(L26=\"error\",\"ข้อมูลผิด\",IF(L27=\"error\",\"ข้อมูลผิด\",IF(L28=\"error\",\"ข้อมูลผิด\",IF(L29=\"error\",\"ข้อมูลผิด\",IF(L30=\"error\",\"ข้อมูลผิด\",IF(L31=\"error\",\"ข้อมูลผิด\", N32))))))","v":"ข้อมูลผิด"},null,null,null,null,null,null,{"$f":"SUM(N25:N31)","v":{"$error":"#VALUE!"}}]
["LD5","ส่วนราชการมีวิธีการและมาตรการในการจัดการผลกระทบทางลบที่เกิดขึ้นต่อสังคม และมีการเตรียมการเชิงรุก มีกระบวนการ ตัววัด และเป้าประสงค์ที่สำคัญในการดำเนินการ","A\n(0.4)","· มีการคำนึงถึงผลกระทบทางลบจากการดำเนินงานตามพันธกิจ วิเคราะห์และประเมินถึงระดับความรุนแรงและกลุ่มเป้าหมายของผลกระทบที่อาจจะเกิดขึ้น ",null,"\nใช่",null,"\nไม่ใช่",null,false,false,"Error",{"$f":"0.4/2","v":0.2},{"$f":"L33*M33","v":{"$error":"#VALUE!"}}]
[null,null,null,"· มีการกำหนดมาตรการในการเตรียมการเชิงรุกและจัดการกับผลกระทบทางลบ ตามลำดับความสำคัญของผลกระทบทางลบที่อาจจะเกิดขึ้น",null,"\nใช่",null,"\nไม่ใช่",null,false,false,"Error",{"$f":"0.4/2","v":0.2},{"$error":"#VALUE!"}]
[null,null,"D\n(0.3)","· มีการดำเนินการตามมาตรการในการเตรียมการเชิงรุกและจัดการกับผลกระทบทางลบ",null,"\nใช่",null,"\nไม่ใช่",null,false,false,"Error",{"$f":"0.3/2","v":0.15},{"$error":"#VALUE!"}]
[null,null,null,"· มีการกำหนดและติดตามตัววัด หรือตัวชี้วัด และเป้าประสงค์ที่สำคัญในการดำเนินการเตรียมการเชิงรุก และจัดการกับผลกระทบเกิดขึ้น",null,"\nใช่",null,"\nไม่ใช่",null,false,false,"Error",{"$f":"0.3/2","v":0.15},{"$error":"#VALUE!"}]
[null,null,"R/I\n(0.3)","· มีความเชื่อมโยงไปสู่การดำเนินการในการเตรียมการเชิงรุกและจัดการกับผลกระทบที่เกิดขึ้น หรือเชื่อมโยงการนำมาใช้ประกอบในการจัดทำยุทธศาสตร์",null,"\nใช่",null,"\nไม่ใช่",null,false,false,"Error",{"$f":"0.3/2","v":0.15},{"$error":"#VALUE!"}]
[null,null,null,"· ลดความเสียหาย ความสูญเสียจากการทำงานและผลกระทบที่อาจจะเกิดขึ้น",null,"\nใช่",null,"\nไม่ใช่",null,false,false,"Error",0.15,{"$error":"#VALUE!"}]
[null,null,null,null,"คะแนน",null,{"$f":"IF(L33=\"error\",\"ข้อมูลผิด\",IF(L34=\"error\",\"ข้อมูลผิด\",IF(L35=\"error\",\"ข้อมูลผิด\",IF(L36=\"error\",\"ข้อมูลผิด\",IF(L37=\"error\",\"ข้อมูลผิด\",IF(L38=\"error\",\"ข้อมูลผิด\", N39))))))","v":"ข้อมูลผิด"},null,null,null,null,null,null,{"$f":"SUM(N33:N38)","v":{"$error":"#VALUE!"}}]
[null,null,null,null,"คะแนนรวม",null,{"$f":"IF(G11=\"ข้อมูลผิด\",\"ข้อมูลผิด\",IF(G18=\"ข้อมูลผิด\",\"ข้อมูลผิด\",IF(G24=\"ข้อมูลผิด\",\"ข้อมูลผิด\",IF(G32=\"ข้อมูลผิด\",\"ข้อมูลผิด\",IF(G39=\"ข้อมูลผิด\",\"ข้อมูลผิด\", ((G11*0.2)+(G18*0.2)+(G24*0.2)+(G32*0.2)+(G39*0.2)))))))","v":"ข้อมูลผิด"},null,null,null,null,null,null,{"$f":"(N11*0.2)+(N18*0.2)+(N24*0.2)+(N32*0.2)+(N39*0.2)","v":{"$error":"#VALUE!"}}]

{"sheet":"หมวด 2","index":5,"n_rows":34,"n_cols":14,"rows_kept":34,"cut":false,"hidden":false,"merged":[[33,4,33,5],[33,6,33,7],[4,2,5,2],[4,1,9,1],[10,2,12,2],[18,2,20,2],[10,1,16,1],[17,1,24,1],[32,6,32,7],[9,6,9,7],[25,0,32,0],[25,1,32,1],[27,2,28,2],[29,2,31,2],[32,4,32,5],[25,2,26,2],[2,2,3,3],[17,0,24,0],[21,2,23,2],[24,4,24,5],[24,6,24,7],[18,8,20,8],[21,8,23,8],[27,8,28,8],[29,8,31,8],[25,8,26,8],[1,0,1,3],[4,8,5,8],[7,8,8,8],[10,8,12,8],[13,8,14,8],[2,8,3,8],[10,0,16,0],[13,2,14,2],[16,4,16,5],[16,6,16,7],[2,0,3,0],[2,1,3,1],[2,4,3,7],[4,0,9,0],[7,2,8,2],[9,4,9,5]]}
[]
["หมวด 2 การวางแผนเชิงยุทธศาสตร์"]
["รหัส","แนวทางการดำเนินการ","ประเด็นการพิจารณาการดำเนินการที่ครบถ้วน",null,"การดำเนินการ",null,null,null,"คำอธิบายผลการดำเนินการ"]
[]
["SP1","ส่วนราชการมีการวางแผนยุทธศาสตร์ที่มีการระบุขั้นตอนที่สำคัญของกระบวนการจัดทำยุทธศาสตร์ ผู้ที่เกี่ยวข้องที่สำคัญ กรอบระยะเวลาของการวางแผนระยะสั้นและระยะยาว พิจารณาการเปลี่ยนแปลงที่อาจจะเกิดขึ้นในอนาคต","A\n(0.4)","·   แนวทางและวิธีการในการวางแผนยุทธศาสตร์ระยะสั้นและระยะยาว  การกำหนดตัวชี้วัดที่สำคัญของการบรรลุยุทธศาสตร์ขององค์การ",null,"\nใช่",null,"\nไม่ใช่",null,false,false,{"$f":"IF(J5=K5,\"Error\",IF(J5=TRUE, 5, 1))","v":"Error"},{"$f":"0.4/2","v":0.2},{"$f":"L5*M5","v":{"$error":"#VALUE!"}}]
[null,null,null,"·   กระบวนการที่มุ่งเน้นการมีส่วนร่วมของบุคลากร การคาดการณ์ผลการดำเนินงาน และองค์ความรู้ต่างๆ ที่เกี่ยวข้องกับการวางแผนยุทธศาสตร์",null,"\nใช่",null,"\nไม่ใช่",null,false,false,{"$f":"IF(J6=K6,\"Error\",IF(J6=TRUE, 5, 1))","v":"Error"},{"$f":"0.4/2","v":0.2},{"$f":"L6*M6","v":{"$error":"#VALUE!"}}]
[null,null,"D\n(0.3)","·   มีการวางแผนยุทธศาสตร์ แผนปฏิบัติราชการ 4 ปี ตามแนวทาง วิธีการและกระบวนการที่กำหนดไว้",null,"\nใช่",null,"\nไม่ใช่",null,false,false,"Error",{"$f":"0.3","v":0.3},{"$f":"L7*M7","v":{"$error":"#VALUE!"}}]
[null,null,"R/I\n(0.3)","·    แผนยุทธศาสตร์ที่ตอบสนองความต้องการของผู้รับบริการ ผู้มีส่วนได้ส่วนเสีย และตอบสนองต่อการเปลี่ยนแปลงที่อาจเกิดขึ้นในอนาคต",null,"\nใช่",null,"\nไม่ใช่",null,false,false,"Error",{"$f":"0.3/2","v":0.15},{"$error":"#VALUE!"}]
[null,null,null,"·    แผนยุทธศาสตร์ของส่วนราชการ อาทิ ประเด็นยุทธศาสตร์ เป้าประสงค์ ตัวชี้วัด กลยุทธ์ แผนงานโครงการและกิจกรรม มีความสอดคล้องและตอบสนองกับข้อมูลดังต่อไปนี้\n     - ลักษณะสำคัญขององค์การ : ความท้าทายเชิงยุทธศาสตร์\n     - วิสัยทัศน์และพันธกิจ\n     - ความสมดุลของผู้รับบริการและผู้มีส่วนได้ส่วนเสียที่สำคัญ",null,"\nใช่",null,"\nไม่ใช่",null,false,false,"Error",{"$f":"0.3/2","v":0.15},{"$error":"#VALUE!"}]
[null,null,null,null,"คะแนน",null,{"$f":"IF(L4=\"error\",\"ข้อมูลผิด\",IF(L5=\"error\",\"ข้อมูลผิด\",IF(L6=\"error\",\"ข้อมูลผิด\",IF(L7=\"error\",\"ข้อมูลผิด\",IF(L8=\"error\",\"ข้อมูลผิด\",IF(L9=\"error\",\"ข้อมูลผิด\", N10))))))","v":"ข้อมูลผิด"},null,null,null,null,null,null,{"$f":"SUM(N5:N9)","v":{"$error":"#VALUE!"}}]
["SP2","ส่วนราชการมีวิธีการในการรวบรวมและวิเคราะห์ข้อมูล และพัฒนาสารสนเทศเพื่อใช้ในการวางแผนยุทธศาสตร์ที่ตอบสนองความท้าทายเชิงยุทธศาสตร์ สร้างความสมดุลของความต้องการของผู้มีส่วนได้ส่วนเสียที่สำคัญทั้งหมด","A\n(0.4)","·   แสดงวิธีการรวบรวมข้อมูลสารสนเทศที่ครอบคลุม และเหมาะสมในกระบวนการวางแผนยุทธศาสตร์",null,"\nใช่",null,"\nไม่ใช่",null,false,false,"Error",{"$f":"0.4/3","v":0.13333333333333333},{"$f":"L11*M11","v":{"$error":"#VALUE!"}}]
[null,null,null,"·   รายการข้อมูลสารสนเทศเพื่อใช้ในการวางแผนที่กำหนดรายละเอียด กรอบระยะเวลาในการรวบรวมและวิเคราะห์ข้อมูล รวมถึงผู้รับผิดชอบที่ชัดเจน",null,"\nใช่",null,"\nไม่ใช่",null,false,false,"Error",{"$f":"0.4/3","v":0.13333333333333333},{"$error":"#VALUE!"}]
[null,null,null,"·   แสดงแนวทางวิเคราะห์ข้อมูลและสารสนเทศเพื่อใช้ในการวางแผนยุทธศาสตร์",null,"\nใช่",null,"\nไม่ใช่",null,false,false,"Error",0.13333333333333333,{"$error":"#VALUE!"}]
[null,null,"D\n(0.3)","·   การรวบรวมและวิเคราะห์ข้อมูลสารสนเทศเพื่อใช้ในการจัดทำยุทธศาสตร์ ",null,"\nใช่",null,"\nไม่ใช่",null,false,false,"Error",{"$f":"0.3/2","v":0.15},{"$error":"#VALUE!"}]
[null,null,null,"·   สารสนเทศเพื่อใช้ในการวางแผนยุทธศาสตร์ที่มีความครอบคลุม ถูกต้อง และทันสมัย มีความสอดคล้องกับสภาพแวดล้อมในปัจจุบัน และการเปลี่ยนแปลงในอนาคตที่อาจจะเกิดขึ้น",null,"\nใช่",null,"\nไม่ใช่",null,false,false,"Error",{"$f":"0.3/2","v":0.15},{"$error":"#VALUE!"}]
[null,null,"R/I\n(0.3)","·   แผนยุทธศาสตร์ของส่วนราชการ อาทิ ประเด็นยุทธศาสตร์ เป้าประสงค์ ตัวชี้วัด กลยุทธ์ แผนงานโครงการและกิจกรรม มีความสอดคล้องและตอบสนองกับข้อมูลดังต่อไปนี้\n     - ลักษณะสำคัญขององค์การ : ความท้าทายเชิงยุทธศาสตร์\n     - วิสัยทัศน์และพันธกิจ\n     - โอกาสและทิศทางในอนาคตของส่วนราชการ\n     - ความสมดุลของผู้รับบริการและผู้มีส่วนได้ส่วนเสียที่สำคัญ\n     - สารสนเทศเพื่อใช้ในการวางแผนยุทธศาสตร์",null,"\nใช่",null,"\nไม่ใช่",null,false,false,"Error",{"$f":"0.3","v":0.3},{"$error":"#VALUE!"}]
[null,null,null,null,"คะแนน",null,{"$f":"IF(L11=\"error\",\"ข้อมูลผิด\",IF(L12=\"error\",\"ข้อมูลผิด\",IF(L13=\"error\",\"ข้อมูลผิด\",IF(L14=\"error\",\"ข้อมูลผิด\",IF(L15=\"error\",\"ข้อมูลผิด\",IF(L16=\"error\",\"ข้อมูลผิด\", N17))))))","v":"ข้อมูลผิด"},null,null,null,null,null,null,{"$f":"SUM(N11:N16)","v":{"$error":"#VALUE!"}}]
["SP3","ส่วนราชการมีวิธีการในการจัดทำแผนปฏิบัติการที่สำคัญโดยคำนึงถึงความพร้อมของทรัพยากรของส่วนราชการ สื่อสารสร้างความเข้าใจ รวมถึงนำแผนไปสู่การปฏิบัติเพื่อก่อให้เกิดผลตามวัตถุประสงค์เชิงยุทธศาสตร์ของส่วนราชการ","A\n(0.4)","·   มีการกำหนดแผนงาน กรอบระยะเวลาในการจัดทำแผนปฏิบัติการที่มีความชัดเจน",null,"\nใช่",null,"\nไม่ใช่",null,false,false,"Error",{"$f":"0.4","v":0.4},{"$f":"L18*M18","v":{"$error":"#VALUE!"}}]
[null,null,"D\n(0.3)","·   ส่วนราชการจัดทำแผนปฏิบัติการประจำปีที่ระบุรายละเอียดของแผนงาน โครงการ และกิจกรรมที่มีความชัดเจน รวมทั้งแสดงให้เห็นถึงการจัดสรรทรัพยากรที่เหมาะสมภายใต้ข้อจำกัดต่างๆ เพื่อนำไปสู่การบรรลุผลสำเร็จตามแผนยุทธศาสตร์ที่กำหนดไว้",null,"\nใช่",null,"\nไม่ใช่",null,false,false,"Error",{"$f":"0.3/3","v":9.9999999999999992E-2},{"$error":"#VALUE!"}]
[null,null,null,"·   มีการสื่อสารแผนปฏิบัติการประจำปีให้ผู้ที่เกี่ยวข้องรับทราบเพื่อนำไปสู่การปฏิบัติ",null,"\nใช่",null,"\nไม่ใช่",null,false,false,"Error",{"$f":"0.3/3","v":9.9999999999999992E-2},{"$error":"#VALUE!"}]
[null,null,null,"·   หน่วยงานที่เกี่ยวข้องมีการนำแผนปฏิบัติการประจำปีไปสู่การปฏิบัติ",null,"\nใช่",null,"\nไม่ใช่",null,false,false,"Error",9.9999999999999992E-2,{"$error":"#VALUE!"}]
[null,null,"R/I\n(0.3)","·   แผนปฏิบัติการมีความเชื่อมโยงกับยุทธศาสตร์ที่กำหนดไว้",null,"\nใช่",null,"\nไม่ใช่",null,false,false,"Error",{"$f":"0.3/3","v":9.9999999999999992E-2},{"$error":"#VALUE!"}]
[null,null,null,"·   แผนปฏิบัติการมีความเหมาะสมสอดคล้องกับความพร้อมของทรัพยากรที่ส่วนราชการมีอยู่",null,"\nใช่",null,"\nไม่ใช่",null,false,false,"Error",{"$f":"0.3/3","v":9.9999999999999992E-2},{"$error":"#VALUE!"}]
[null,null,null,"·   แผนปฏิบัติการมีความสำเร็จตามแผนงานและเป้าหมายที่กำหนดไว้",null,"\nใช่",null,"\nไม่ใช่",null,false,false,"Error",9.9999999999999992E-2,{"$error":"#VALUE!"}]
[null,null,null,null,"คะแนน",null,{"$f":"IF(L19=\"error\",\"ข้อมูลผิด\",IF(L20=\"error\",\"ข้อมูลผิด\",IF(L21=\"error\",\"ข้อมูลผิด\",IF(L22=\"error\",\"ข้อมูลผิด\",IF(L23=\"error\",\"ข้อมูลผิด\",IF(L24=\"error\",\"ข้อมูลผิด\", N25))))))","v":"ข้อมูลผิด"},null,null,null,null,null,null,{"$f":"SUM(N18:N24)","v":{"$error":"#VALUE!"}}]
["SP4","ส่วนราชการมีระบบการกำกับและติดตามความสำเร็จและประสิทธิผลของการดำเนินการตามแผนยุทธศาสตร์และแผนปฏิบัติการ ทบทวนและปรับแผนให้มีความสอดคล้องกับสถานการณ์","A\n(0.4)","·   ส่วนราชการมีระบบในการติดตามความสำเร็จและประสิทธิผลของแผนปฏิบัติการ",null,"\nใช่",null,"\nไม่ใช่",null,false,false,"Error",{"$f":"0.4/2","v":0.2},{"$f":"L26*M26","v":{"$error":"#VALUE!"}}]
[null,null,null,"·   ส่วนราชการมีแผนงานและแนวทางในการถ่ายทอดตัวชี้วัดและค่าเป้าหมายที่สำคัญไปสู่ระดับหน่วยงานและระดับบุคคลเพื่อใช้ในการกำกับติดตาม และประเมินผลสำเร็จตามแผนงานและเป้าหมายที่ได้กำหนดไว้",null,"\nใช่",null,"\nไม่ใช่",null,false,false,"Error",{"$f":"0.4/2","v":0.2},{"$error":"#VALUE!"}]
[null,null,"D\n(0.3)","·   ส่วนราชการมีการถ่ายทอดตัวชี้วัดและค่าเป้าหมายที่สำคัญสู่ระดับหน่วยงานและระดับบุคคล",null,"\nใช่",null,"\nไม่ใช่",null,false,false,"Error",{"$f":"0.3/2","v":0.15},{"$error":"#VALUE!"}]
[null,null,null,"·   ส่วนราชการมีการติดตามความสำเร็จและประสิทธิผลของแผนปฏิบัติการ",null,"\nใช่",null,"\nไม่ใช่",null,false,false,"Error",{"$f":"0.3/2","v":0.15},{"$error":"#VALUE!"}]
[null,null,"R/I\n(0.3)","·   ส่วนราชการนำข้อมูลที่ได้รับจากการติดตามความสำเร็จและประสิทธิผลของแผนปฏิบัติการมาใช้ในการทบทวนแผนปฏิบัติการให้มีความเหมาะสมสอดคล้องกับสถานการณ์ในแต่ละช่วงเวลา",null,"\nใช่",null,"\nไม่ใช่",null,false,false,"Error",{"$f":"0.3/3","v":9.9999999999999992E-2},{"$error":"#VALUE!"}]
[null,null,null,"·   ส่วนราชการนำข้อมูลจากการติดตามความสำเร็จและประสิทธิผลของแผนปฏิบัติการไปใช้ในการทบทวนและปรับปรุงแผนยุทธศาสตร์ให้มีความเหมาะสม",null,"\nใช่",null,"\nไม่ใช่",null,false,false,"Error",{"$f":"0.3/3","v":9.9999999999999992E-2},{"$error":"#VALUE!"}]
[null,null,null,"·   มีการเชื่อมโยงผลการปฏิบัติการกับระบบการจัดสรรสิ่งจูงใจ",null,"\nใช่",null,"\nไม่ใช่",null,false,false,"Error",9.9999999999999992E-2,{"$error":"#VALUE!"}]
[null,null,null,null,"คะแนน",null,{"$f":"IF(L27=\"error\",\"ข้อมูลผิด\",IF(L28=\"error\",\"ข้อมูลผิด\",IF(L29=\"error\",\"ข้อมูลผิด\",IF(L30=\"error\",\"ข้อมูลผิด\",IF(L31=\"error\",\"ข้อมูลผิด\",IF(L32=\"error\",\"ข้อมูลผิด\", N33))))))","v":"ข้อมูลผิด"},null,null,null,null,null,null,{"$f":"SUM(N26:N32)","v":{"$error":"#VALUE!"}}]
[null,null,null,null,"คะแนนรวม",null,{"$f":"IF(G10=\"ข้อมูลผิด\",\"ข้อมูลผิด\",IF(G17=\"ข้อมูลผิด\",\"ข้อมูลผิด\",IF(G25=\"ข้อมูลผิด\",\"ข้อมูลผิด\",IF(G33=\"ข้อมูลผิด\",\"ข้อมูลผิด\", ((G10*0.25)+(G17*0.25)+(G25*0.25)+(G33*0.25))))))","v":"ข้อมูลผิด"},null,null,null,null,null,null,{"$f":"(N10*0.25)+(N17*0.25)+(N25*0.25)+(N33*0.25)","v":{"$error":"#VALUE!"}}]

{"sheet":"หมวด 3","index":6,"n_rows":35,"n_cols":14,"rows_kept":35,"cut":false,"hidden":false,"merged":[[14,4,14,5],[14,6,14,7],[2,0,3,0],[2,1,3,1],[2,4,3,7],[4,0,8,0],[5,2,6,2],[8,4,8,5],[34,4,34,5],[34,6,34,7],[4,1,8,1],[10,2,12,2],[9,1,14,1],[16,2,18,2],[21,2,22,2],[30,2,32,2],[15,1,20,1],[21,1,27,1],[27,6,27,7],[8,6,8,7],[33,4,33,5],[33,6,33,7],[28,1,33,1],[20,4,20,5],[24,8,26,8],[30,8,32,8],[2,2,3,3],[1,0,1,3],[2,8,3,8],[5,8,6,8],[10,8,12,8],[16,8,18,8],[21,8,22,8],[28,0,33,0],[15,0,20,0],[20,6,20,7],[21,0,27,0],[24,2,26,2],[27,4,27,5],[9,0,14,0]]}
[]
["หมวด 3 การให้ความสำคัญกับผู้รับบริการและผู้มีส่วนได้ส่วนเสีย"]
["รหัส","แนวทางการดำเนินการ","ประเด็นการพิจารณาการดำเนินการที่ครบถ้วน",null,"การดำเนินการ",null,null,null,"คำอธิบายผลการดำเนินการ"]
[]
["CS1","ส่วนราชการมีวิธีการในการรวบรวมข้อมูลและสารสนเทศที่เกี่ยวข้องกับผู้รับบริการและผู้มีส่วนได้ส่วนเสียที่อาจจะมีความแตกต่างกันตามกลุ่มผู้รับบริการและผู้มีส่วนได้ส่วนเสีย เพื่อให้ได้สารสนเทศที่สามารถนำไปใช้ในการปรับปรุงผลผลิตและบริการได้","A\n(0.4)","·     มีการกำหนดช่องทางในการรวบรวมข้อมูลความต้องการและความคาดหวังจากผู้รับบริการและผู้มีส่วนได้ส่วนเสียที่มีความเหมาะสมตามกลุ่มผู้รับบริการและผู้มีส่วนได้ส่วนเสียแต่ละกลุ่ม",null,"\nใช่",null,"\nไม่ใช่",null,false,false,{"$f":"IF(J5=K5,\"Error\",IF(J5=TRUE, 5, 1))","v":"Error"},0.4,{"$f":"L5*M5","v":{"$error":"#VALUE!"}}]
[null,null,"D\n(0.3)","·      มีการรวบรวมข้อมูลและสารสนเทศที่เกี่ยวข้องกับผู้รับบริการและผู้มีส่วนได้ส่วนเสียที่มีความแตกต่างกันและเหมาะสมตามกลุ่มผู้รับบริการและผู้มีส่วนได้ส่วนเสียแต่ละกลุ่ม",null,"\nใช่",null,"\nไม่ใช่",null,false,false,{"$f":"IF(J6=K6,\"Error\",IF(J6=TRUE, 5, 1))","v":"Error"},{"$f":"0.3/2","v":0.15},{"$f":"L6*M6","v":{"$error":"#VALUE!"}}]
[null,null,null,"·     มีการวิเคราะห์ข้อมูลที่ได้รับ และจัดทำเป็นสารสนเทศที่เกี่ยวข้องกับผู้รับบริการและผู้มีส่วนได้ส่วนเสีย",null,"\nใช่",null,"\nไม่ใช่",null,false,false,"Error",{"$f":"0.3/2","v":0.15},{"$error":"#VALUE!"}]
[null,null,"R/I\n(0.3)","·     มีการนำสารสนเทศที่เกี่ยวข้องกับผู้รับบริการและผู้มีส่วนได้ส่วนเสีย ไปใช้ในการวางแผนยุทธศาสตร์ ปรับปรุงผลผลิต บริการ และกระบวนการดำเนินงาน",null,"\nใช่",null,"\nไม่ใช่",null,false,false,"Error",{"$f":"0.3","v":0.3},{"$error":"#VALUE!"}]
[null,null,null,null,"คะแนน",null,{"$f":"IF(L3=\"error\",\"ข้อมูลผิด\",IF(L4=\"error\",\"ข้อมูลผิด\",IF(L5=\"error\",\"ข้อมูลผิด\",IF(L6=\"error\",\"ข้อมูลผิด\",IF(L7=\"error\",\"ข้อมูลผิด\",IF(L8=\"error\",\"ข้อมูลผิด\", N9))))))","v":"ข้อมูลผิด"},null,null,null,null,null,null,{"$f":"SUM(N5:N8)","v":{"$error":"#VALUE!"}}]
["CS2","ส่วนราชการมีวิธีการในการประเมินความพึงพอใจของผู้รับบริการและผู้มีส่วนได้ส่วนเสีย  และนำสารสนเทศไปใช้ตอบสนองความคาดหวังของผู้รับบริการและผู้มีส่วนได้ส่วนเสีย","A\n(0.4)","·        แสดงวิธีการประเมินความพึงพอใจของผู้รับบริการและผู้มีส่วนได้ส่วนเสียที่ครอบคลุมพันธกิจที่สำคัญขององค์การ และกลุ่มผู้รับบริการและผู้มีส่วนได้ส่วนเสียที่สำคัญทุกกลุ่มตามที่จำแนกไว้ในลักษณะสำคัญขององค์การ",null,"\nใช่",null,"\nไม่ใช่",null,false,false,"Error",{"$f":"0.4","v":0.4},{"$f":"L10*M10","v":{"$error":"#VALUE!"}}]
[null,null,"D\n(0.3)","·     มีการประเมินความพึงพอใจของผู้รับบริการอย่างสม่ำเสมอตามกรอบระยะเวลาที่กำหนดเพื่อให้ได้ข้อมูลจากผู้รับบริการและผู้มีส่วนได้ส่วนเสียที่มีความทันสมัย",null,"\nใช่",null,"\nไม่ใช่",null,false,false,"Error",{"$f":"0.3/3","v":9.9999999999999992E-2},{"$error":"#VALUE!"}]
[null,null,null,"·     มีสารสนเทศด้านความพึงพอใจของผู้รับบริการและผู้มีส่วนได้ส่วนเสียที่ครอบคลุมพันธกิจที่สำคัญขององค์การ และกลุ่มผู้รับบริการและผู้มีส่วนได้ส่วนเสีย",null,"\nใช่",null,"\nไม่ใช่",null,false,false,"Error",{"$f":"0.3/3","v":9.9999999999999992E-2},{"$error":"#VALUE!"}]
[null,null,null,"·     มีการวิเคราะห์ผลการประเมินความพึงพอใจเพื่อหาต้นเหตุของปัญหา เพื่อนำไปสู่การจัดทำเป็นสารสนเทศและทำให้สามารถแก้ไขปัญหาได้อย่างเป็นระบบ",null,"\nใช่",null,"\nไม่ใช่",null,false,false,"Error",9.9999999999999992E-2,{"$error":"#VALUE!"}]
[null,null,"R/I\n(0.3)","·     นำสารสนเทศด้านความพึงพอใจของผู้รับบริการและผู้มีส่วนได้ส่วนเสียไปใช้ในการปรับปรุงผลผลิต บริการ และกระบวนการดำเนินงาน",null,"\nใช่",null,"\nไม่ใช่",null,false,false,"Error",{"$f":"0.3","v":0.3},{"$error":"#VALUE!"}]
[null,null,null,null,"คะแนน",null,{"$f":"IF(L9=\"error\",\"ข้อมูลผิด\",IF(L10=\"error\",\"ข้อมูลผิด\",IF(L11=\"error\",\"ข้อมูลผิด\",IF(L12=\"error\",\"ข้อมูลผิด\",IF(L13=\"error\",\"ข้อมูลผิด\",IF(L14=\"error\",\"ข้อมูลผิด\", N15))))))","v":"ข้อมูลผิด"},null,null,null,null,null,null,{"$f":"SUM(N10:N14)","v":{"$error":"#VALUE!"}}]
["CS3","ส่วนราชการมีวิธีการในการรวบรวมและค้นหาปัจจัยที่มีผลต่อความไม่พึงพอใจของผู้รับบริการและผู้มีส่วนได้ส่วนเสีย และนำสารสนเทศไปใช้ตอบสนองความคาดหวังของผู้รับบริการและผู้มีส่วนได้ส่วนเสีย ","A\n(0.4)","·     แสดงวิธีการในการรวบรวมและค้นหาปัจจัยที่มีผลต่อความไม่พึงพอใจของผู้รับบริการที่ครอบคลุมพันธกิจที่สำคัญขององค์การ และกลุ่มผู้รับบริการและผู้มีส่วนได้ส่วนเสียที่สำคัญทุกกลุ่มตามที่จำแนกไว้ในลักษณะสำคัญขององค์การ ผ่านวิธีการต่างๆ เช่น การรับเรื่องร้องทุกข์ร้องเรียน ข้อขัดข้อง ปัญหาอุปสรรคจาการดำเนินงาน เป็นต้น",null,"\nใช่",null,"\nไม่ใช่",null,false,false,"Error",{"$f":"0.4","v":0.4},{"$f":"L16*M16","v":{"$error":"#VALUE!"}}]
[null,null,"D\n(0.3)","·     มีการรวบรวมและค้นหาปัจจัยที่มีผลต่อความไม่พึงพอใจของผู้รับบริการและผู้มีส่วนได้ส่วนเสีย",null,"\nใช่",null,"\nไม่ใช่",null,false,false,"Error",{"$f":"0.3/3","v":9.9999999999999992E-2},{"$error":"#VALUE!"}]
[null,null,null,"·     มีสารสนเทศด้านความไม่พึงพอใจของผู้รับบริการและผู้มีส่วนได้ส่วนเสียที่ครอบคลุมพันธกิจที่สำคัญขององค์การ และกลุ่มผู้รับบริการและผู้มีส่วนได้ส่วนเสีย",null,"\nใช่",null,"\nไม่ใช่",null,false,false,"Error",{"$f":"0.3/3","v":9.9999999999999992E-2},{"$error":"#VALUE!"}]
[null,null,null,"·     มีการวิเคราะห์ผลการประเมินความไม่พึงพอใจเพื่อหาต้นเหตุของปัญหาและทำให้สามารถแก้ไขปัญหาได้อย่างเป็นระบบ เพื่อหลีกเลี่ยงความไม่พึงพอใจในอนาคต",null,"\nใช่",null,"\nไม่ใช่",null,false,false,"Error",9.9999999999999992E-2,{"$error":"#VALUE!"}]
[null,null,"R/I\n(0.3)","·     นำสารสนเทศด้านความไม่พึงพอใจของผู้รับบริการและผู้มีส่วนได้ส่วนเสียไปใช้ในการปรับปรุงผลผลิต บริการ และกระบวนการดำเนินงาน",null,"\nใช่",null,"\nไม่ใช่",null,false,false,"Error",{"$f":"0.3","v":0.3},{"$error":"#VALUE!"}]
[null,null,null,null,"คะแนน",null,{"$f":"IF(L15=\"error\",\"ข้อมูลผิด\",IF(L16=\"error\",\"ข้อมูลผิด\",IF(L17=\"error\",\"ข้อมูลผิด\",IF(L18=\"error\",\"ข้อมูลผิด\",IF(L19=\"error\",\"ข้อมูลผิด\",IF(L20=\"error\",\"ข้อมูลผิด\", N21))))))","v":"ข้อมูลผิด"},null,null,null,null,null,null,{"$f":"SUM(N16:N20)","v":{"$error":"#VALUE!"}}]
["CS4","ส่วนราชการมีวิธีการในการสื่อสาร สร้าง และจัดการความสัมพันธ์กับผู้รับบริการและผู้มีส่วนได้ส่วนเสียเพื่อรักษาสัมพันธ์ และตอบสนองความต้องการกับผู้รับบริการและผู้มีส่วนได้ส่วนเสีย","A\n(0.4)","·     มีการวิเคราะห์และคัดเลือกผู้รับบริการและผู้มีส่วนได้ส่วนเสียที่สำคัญกับองค์การ",null,"\nใช่",null,"\nไม่ใช่",null,false,false,"Error",{"$f":"0.4/2","v":0.2},{"$f":"L22*M22","v":{"$error":"#VALUE!"}}]
[null,null,null,"·      มีแนวทางและวิธีการในการสื่อสาร สร้าง และจัดการความสัมพันธ์กับผู้รับบริการและผู้มีส่วนได้ส่วนเสีย",null,"\nใช่",null,"\nไม่ใช่",null,false,false,"Error",{"$f":"0.4/2","v":0.2},{"$error":"#VALUE!"}]
[null,null,"D\n(0.3)","·     มีการจัดกิจกรรมในการสื่อสาร สร้าง และจัดการความสัมพันธ์กับผู้รับบริการและผู้มีส่วนได้ส่วนเสีย",null,"\nใช่",null,"\nไม่ใช่",null,false,false,"Error",{"$f":"0.3","v":0.3},{"$error":"#VALUE!"}]
[null,null,"R/I\n(0.3)","·     ส่วนราชการมีวัฒนธรรมที่มุ่งเน้นผู้รับบริการและผู้มีส่วนได้ส่วนเสียมากขึ้น",null,"\nใช่",null,"\nไม่ใช่",null,false,false,"Error",{"$f":"0.3/3","v":9.9999999999999992E-2},{"$error":"#VALUE!"}]
[null,null,null,"·     ส่วนราชการมีการตอบสนองความต้องการของผู้รับบริการและผู้มีส่วนได้ส่วนเสีย แสดงให้เห็นถึงการปรับปรุงการให้บริการ ",null,"\nใช่",null,"\nไม่ใช่",null,false,false,"Error",{"$f":"0.3/3","v":9.9999999999999992E-2},{"$error":"#VALUE!"}]
[null,null,null,"·     ผู้รับบริการและผู้มีส่วนได้ส่วนเสียรับทราบข่าวสารข้อมูล มีความพึงพอใจ และมีความสัมพันธ์ที่ดีกับส่วนราชการ",null,"\nใช่",null,"\nไม่ใช่",null,false,false,"Error",9.9999999999999992E-2,{"$error":"#VALUE!"}]
[null,null,null,null,"คะแนน",null,{"$f":"IF(L22=\"error\",\"ข้อมูลผิด\",IF(L23=\"error\",\"ข้อมูลผิด\",IF(L24=\"error\",\"ข้อมูลผิด\",IF(L25=\"error\",\"ข้อมูลผิด\",IF(L26=\"error\",\"ข้อมูลผิด\",IF(L27=\"error\",\"ข้อมูลผิด\", N28))))))","v":"ข้อมูลผิด"},null,null,null,null,null,null,{"$f":"SUM(N22:N27)","v":{"$error":"#VALUE!"}}]
["CS5","ส่วนราชการมีวิธีการในการจัดการกับข้อร้องเรียนของผู้รับบริการและผู้มีส่วนได้ส่วนเสีย และทำให้มั่นใจว่าข้อร้องเรียนได้รับการแก้ไขอย่างทันท่วงทีและมีประสิทธิผล","A\n(0.4)","·     ส่วนราชการมีระบบการจัดการข้อร้องเรียนอย่างทันท่วงทีและมีประสิทธิผล",null,"\nใช่",null,"\nไม่ใช่",null,false,false,"Error",{"$f":"0.4","v":0.4},{"$f":"L29*M29","v":{"$error":"#VALUE!"}}]
[null,null,"D/L\n(0.3)","·     รวบรวม วิเคราะห์ และบ่งชี้ถึงต้นเหตุที่แท้จริงของปัญหาข้อร้องเรียน และดำเนินการจัดการข้อร้องเรียนอย่างทันท่วงทีและมีประสิทธิผล",null,"\nใช่",null,"\nไม่ใช่",null,false,false,"Error",{"$f":"0.3","v":0.3},{"$error":"#VALUE!"}]
[null,null,"R/I\n(0.3)","·     ระบบการจัดการข้อร้องเรียนสามารถตอบสนอง และแก้ไขปัญหาของผู้ร้องเรียนได้อย่างทันท่วงทีและมีประสิทธิผล",null,"\nใช่",null,"\nไม่ใช่",null,false,false,"Error",{"$f":"0.3/3","v":9.9999999999999992E-2},{"$error":"#VALUE!"}]
[null,null,null,"·     ส่วนราชการสามารถนำบทเรียนที่ได้รับไปใช้ในการปรับปรุงกระบวนการและบริการ",null,"\nใช่",null,"\nไม่ใช่",null,false,false,"Error",{"$f":"0.3/3","v":9.9999999999999992E-2},{"$error":"#VALUE!"}]
[null,null,null,"·     ผู้รับบริการและผู้มีส่วนได้ส่วนเสียมีความพึงพอใจ มีข้อร้องเรียนลดลง ไม่เกิดข้อร้องเรียนซ้ำ",null,"\nใช่",null,"\nไม่ใช่",null,false,false,"Error",9.9999999999999992E-2,{"$error":"#VALUE!"}]
[null,null,null,null,"คะแนน",null,{"$f":"IF(L28=\"error\",\"ข้อมูลผิด\",IF(L29=\"error\",\"ข้อมูลผิด\",IF(L30=\"error\",\"ข้อมูลผิด\",IF(L31=\"error\",\"ข้อมูลผิด\",IF(L32=\"error\",\"ข้อมูลผิด\",IF(L33=\"error\",\"ข้อมูลผิด\", N34))))))","v":"ข้อมูลผิด"},null,null,null,null,null,null,{"$f":"SUM(N29:N33)","v":{"$error":"#VALUE!"}}]
[null,null,null,null,"คะแนนรวม",null,{"$f":"IF(G9=\"ข้อมูลผิด\",\"ข้อมูลผิด\",IF(G15=\"ข้อมูลผิด\",\"ข้อมูลผิด\",IF(G21=\"ข้อมูลผิด\",\"ข้อมูลผิด\",IF(G28=\"ข้อมูลผิด\",\"ข้อมูลผิด\",IF(G34=\"ข้อมูลผิด\",\"ข้อมูลผิด\", ((G9*0.2)+(G15*0.2)+(G21*0.2)+(G28*0.2)+(G34*0.2)))))))","v":"ข้อมูลผิด"},null,null,null,null,null,null,{"$f":"(N9*0.2)+(N15*0.2)+(N21*0.2)+(N28*0.2)+(N34*0.2)","v":{"$error":"#VALUE!"}}]

{"sheet":"หมวด 4","index":7,"n_rows":31,"n_cols":14,"rows_kept":31,"cut":false,"hidden":false,"merged":[[2,0,3,0],[2,1,3,1],[2,4,3,7],[2,2,3,3],[5,2,6,2],[7,2,8,2],[9,4,9,5],[10,1,16,1],[4,1,9,1],[30,6,30,7],[19,2,20,2],[21,2,22,2],[17,2,18,2],[24,2,25,2],[26,2,27,2],[29,6,29,7],[30,4,30,5],[23,4,23,5],[23,6,23,7],[29,4,29,5],[26,8,27,8],[2,8,3,8],[5,8,6,8],[7,8,8,8],[11,8,12,8],[13,8,15,8],[1,0,1,3],[17,8,18,8],[19,8,20,8],[21,8,22,8],[24,8,25,8],[17,0,23,0],[24,0,29,0],[24,1,29,1],[17,1,23,1],[9,6,9,7],[10,0,16,0],[11,2,12,2],[13,2,15,2],[16,4,16,5],[16,6,16,7],[4,0,9,0]]}
[]
["หมวด 4 การวัด การวิเคราะห์ และการจัดการความรู้"]
["รหัส","แนวทางการดำเนินการ","ประเด็นการพิจารณาการดำเนินการที่ครบถ้วน",null,"การดำเนินการ",null,null,null,"คำอธิบายผลการดำเนินการ"]
[]
["IT1","ส่วนราชการมีการเลือก รวบรวม ตัววัดผลการดำเนินงาน เพื่อติดตามผลการปฏิบัติการและผลการดำเนินการโดยรวมของส่วนราชการ ซึ่งรวมถึงการติดตามความก้าวหน้าในการบรรลุวัตถุประสงค์เชิงยุทธศาสตร์และแผนปฏิบัติการ","A\n(0.4)","·    แสดงวิธีการเลือก รวบรวม ตัววัดการดำเนินงานที่สำคัญของส่วนราชการ เพื่อใช้ในการติดตามความก้าวหน้า และผลสำเร็จของการดำเนินงานของส่วนราชการ",null,"\nใช่",null,"\nไม่ใช่",null,false,false,{"$f":"IF(J5=K5,\"Error\",IF(J5=TRUE, 5, 1))","v":"Error"},0.4,{"$f":"L5*M5","v":{"$error":"#VALUE!"}}]
[null,null,"D\n(0.3)","·    แสดงตัววัดที่สำคัญของส่วนราชการที่ใช้ในการติดตามความก้าวหน้าและผลสำเร็จของการดำเนินงานของส่วนราชการ",null,"\nใช่",null,"\nไม่ใช่",null,false,false,{"$f":"IF(J6=K6,\"Error\",IF(J6=TRUE, 5, 1))","v":"Error"},{"$f":"0.3/2","v":0.15},{"$f":"L6*M6","v":{"$error":"#VALUE!"}}]
[null,null,null,"·    รวบรวม ติดตามผลการดำเนินงานตามตัววัดเพื่อติดตามผลการปฏิบัติงานและผลการดำเนินการโดยรวม",null,"\nใช่",null,"\nไม่ใช่",null,false,false,"Error",{"$f":"0.3/2","v":0.15},{"$error":"#VALUE!"}]
[null,null,"R/I\n(0.3)","·    การแสดงให้เห็นถึงระบบการวัดผลที่สอดคล้องไปในแนวทางเดียวกัน และการบูรณาการ เพื่อใช้ติดตามผลที่สอดคล้องกับผลลัพธ์การดำเนินการ",null,"\nใช่",null,"\nไม่ใช่",null,false,false,"Error",{"$f":"0.3/2","v":0.15},{"$error":"#VALUE!"}]
[null,null,null,"·    ข้อมูลมีความครอบคลุม ถูกต้อง และทันสมัย สามารถนำไปใช้ในการวางแผนและตัดสินใจได้อย่างมีประสิทธิภาพ",null,"\nใช่",null,"\nไม่ใช่",null,false,false,"Error",0.15,{"$error":"#VALUE!"}]
[null,null,null,null,"คะแนน",null,{"$f":"IF(L4=\"error\",\"ข้อมูลผิด\",IF(L5=\"error\",\"ข้อมูลผิด\",IF(L6=\"error\",\"ข้อมูลผิด\",IF(L7=\"error\",\"ข้อมูลผิด\",IF(L8=\"error\",\"ข้อมูลผิด\",IF(L9=\"error\",\"ข้อมูลผิด\", N10))))))","v":"ข้อมูลผิด"},null,null,null,null,null,null,{"$f":"SUM(N5:N9)","v":{"$error":"#VALUE!"}}]
["IT2","ส่วนราชการมีการวิเคราะห์ และทบทวนผลการดำเนินการเพื่อประเมินผลสำเร็จของส่วนราชการ ความก้าวหน้าในการบรรลุวัตถุประสงค์เชิงยุทธศาสตร์และแผนปฏิบัติการเพื่อการแลกเปลี่ยนเรียนรู้แนวปฏิบัติที่ดี และนำไปสู่การปรับปรุงอย่างต่อเนื่อง","A\n(0.4)","·    แสดงระบบการวิเคราะห์ผลการดำเนินงานที่นำไปสู่การปรับปรุงผลการดำเนินการอย่างต่อเนื่อง",null,"\nใช่",null,"\nไม่ใช่",null,false,false,"Error",{"$f":"0.4","v":0.4},{"$f":"L11*M11","v":{"$error":"#VALUE!"}}]
[null,null,"D\n(0.3)","·       มีการวิเคราะห์และทบทวนผลการดำเนินการเพื่อประเมินผลสำเร็จของส่วนราชการ ความก้าวหน้าในการบรรลุวัตถุประสงค์เชิงยุทธศาสตร์และแผนปฏิบัติการ",null,"\nใช่",null,"\nไม่ใช่",null,false,false,"Error",{"$f":"0.3/2","v":0.15},{"$error":"#VALUE!"}]
[null,null,null,"·    นำผลของการทบทวนไปใช้ในการแลกเปลี่ยนเรียนรู้และปรับปรุงองค์การ",null,"\nใช่",null,"\nไม่ใช่",null,false,false,"Error",{"$f":"0.3/2","v":0.15},{"$error":"#VALUE!"}]
[null,null,"R/I\n(0.3)","·    เกิดการเรียนรู้แนวปฏิบัติที่ดี",null,"\nใช่",null,"\nไม่ใช่",null,false,false,"Error",{"$f":"0.3/3","v":9.9999999999999992E-2},{"$error":"#VALUE!"}]
[null,null,null,"·    แสดงให้เห็นถึงผลการทบทวนผลการดำเนินการเพื่อนำไปสู่การคาดการณ์ผลการดำเนินการในอนาคตและนำไปสู่การสร้างโอกาสในการปรับปรุงผลการดำเนินการ",null,"\nใช่",null,"\nไม่ใช่",null,false,false,"Error",{"$f":"0.3/3","v":9.9999999999999992E-2},{"$error":"#VALUE!"}]
[null,null,null,"·    เชื่อมโยงการวิเคราะห์และทบทวนผลการดำเนินการ ไปสู่การจัดทำสารสนเทศเพื่อใช้ในการวางแผนยุทธศาสตร์",null,"\nใช่",null,"\nไม่ใช่",null,false,false,"Error",9.9999999999999992E-2,{"$error":"#VALUE!"}]
[null,null,null,null,"คะแนน",null,{"$f":"IF(L11=\"error\",\"ข้อมูลผิด\",IF(L12=\"error\",\"ข้อมูลผิด\",IF(L13=\"error\",\"ข้อมูลผิด\",IF(L14=\"error\",\"ข้อมูลผิด\",IF(L15=\"error\",\"ข้อมูลผิด\",IF(L16=\"error\",\"ข้อมูลผิด\", N17))))))","v":"ข้อมูลผิด"},null,null,null,null,null,null,{"$f":"SUM(N11:N16)","v":{"$error":"#VALUE!"}}]
["IT3","ส่วนราชการมีวิธีการรวบรวมและถ่ายทอดองค์ความรู้ ที่จำเป็นและเป็นประโยชน์แก่องค์การ เพื่อใช้ประโยชน์ในการแบ่งปันและนำวิธีปฏิบัติที่เป็นเลิศไปดำเนินการ","A\n(0.4)","·    แนวทางและวิธีการคัดเลือกองค์ความรู้ที่จำเป็นและเป็นประโยชน์แก่องค์การ",null,"\nใช่",null,"\nไม่ใช่",null,false,false,"Error",{"$f":"0.4/2","v":0.2},{"$f":"L18*M18","v":{"$error":"#VALUE!"}}]
[null,null,null,"·    แนวทางการค้นหาวิธีการปฏิบัติที่เป็นเลิศ",null,"\nใช่",null,"\nไม่ใช่",null,false,false,"Error",{"$f":"0.4/2","v":0.2},{"$error":"#VALUE!"}]
[null,null,"D/L\n(0.3)","·    มีการแบ่งปันและถ่ายทอดองค์ความรู้ที่มีอยู่",null,"\nใช่",null,"\nไม่ใช่",null,false,false,"Error",{"$f":"0.3/2","v":0.15},{"$error":"#VALUE!"}]
[null,null,null,"·    มีการนำวิธีการปฏิบัติที่เป็นเลิศไปถ่ายทอดและขยายผล",null,"\nใช่",null,"\nไม่ใช่",null,false,false,"Error",{"$f":"0.3/2","v":0.15},{"$error":"#VALUE!"}]
[null,null,"R/I\n(0.3)","·    แสดงถึงการมีองค์ความรู้ที่เป็นประโยชน์แก่องค์การ และนำไปใช้ประโยชน์ในการปฏิบัติงานได้ รวมถึงการพัฒนากระบวนการที่เพิ่มคุณค่าให้กับผู้รับบริการและผู้มีส่วนได้ส่วนเสีย",null,"\nใช่",null,"\nไม่ใช่",null,false,false,"Error",{"$f":"0.3/2","v":0.15},{"$error":"#VALUE!"}]
[null,null,null,"·    เกิดวัฒนธรรมในการแลกเปลี่ยนเรียนรู้ระดับองค์การและระดับบุคคล",null,"\nใช่",null,"\nไม่ใช่",null,false,false,"Error",0.15,{"$error":"#VALUE!"}]
[null,null,null,null,"คะแนน",null,{"$f":"IF(L18=\"error\",\"ข้อมูลผิด\",IF(L19=\"error\",\"ข้อมูลผิด\",IF(L20=\"error\",\"ข้อมูลผิด\",IF(L21=\"error\",\"ข้อมูลผิด\",IF(L22=\"error\",\"ข้อมูลผิด\",IF(L23=\"error\",\"ข้อมูลผิด\", N24))))))","v":"ข้อมูลผิด"},null,null,null,null,null,null,{"$f":"SUM(N18:N23)","v":{"$error":"#VALUE!"}}]
["IT4","ส่วนราชการมีวิธีการทำให้มั่นใจว่าข้อมูลและสารสนเทศของส่วนราชการมีความครอบคลุม ถูกต้อง ทันสมัย และปลอดภัย รวมถึงมีเทคโนโลยีสารสนเทศที่มีรูปแบบที่ใช้งานง่ายสำหรับผู้ใช้งานทั้งภายในและภายนอกส่วนราชการ","A\n(0.4)","·    แนวทางและวิธีการที่ส่วนราชการนำไปใช้ในการพัฒนาเพื่อให้ข้อมูลและสารสนเทศมีความครอบคลุม ถูกต้อง  ทันสมัย และปลอดภัย ",null,"\nใช่",null,"\nไม่ใช่",null,false,false,"Error",{"$f":"0.4/2","v":0.2},{"$f":"L25*M25","v":{"$error":"#VALUE!"}}]
[null,null,null,"·    แนวทางในการออกแบบระบบเทคโนโลยีสารสนเทศให้มีรูปแบบที่ใช้งานง่าย",null,"\nใช่",null,"\nไม่ใช่",null,false,false,"Error",{"$f":"0.4/2","v":0.2},{"$error":"#VALUE!"}]
[null,null,"D\n(0.3)","·   แสดงฐานข้อมูลสารสนเทศที่สำคัญที่ส่วนราชการได้พัฒนาให้มีความคลอบคลุม ถูกต้อง ทันสมัย และปลอดภัย",null,"\nใช่",null,"\nไม่ใช่",null,false,false,"Error",{"$f":"0.3/2","v":0.15},{"$error":"#VALUE!"}]
[null,null,null,"·    แสดงระบบการรักษาความมั่นคงและปลอดภัยของระบบเทคโนโลยีสารสนเทศ",null,"\nใช่",null,"\nไม่ใช่",null,false,false,"Error",{"$f":"0.3/2","v":0.15},{"$error":"#VALUE!"}]
[null,null,"R/I\n(0.3)","·    ระบบเทคโนโลยีสารสนเทศมีรูปแบบที่ใช้งานง่ายสำหรับผู้ใช้งานทั้งภายในและภายนอกส่วนราชการ",null,"\nใช่",null,"\nไม่ใช่",null,false,false,"Error",{"$f":"0.3","v":0.3},{"$error":"#VALUE!"}]
[null,null,null,null,"คะแนน",null,{"$f":"IF(L24=\"error\",\"ข้อมูลผิด\",IF(L25=\"error\",\"ข้อมูลผิด\",IF(L26=\"error\",\"ข้อมูลผิด\",IF(L27=\"error\",\"ข้อมูลผิด\",IF(L28=\"error\",\"ข้อมูลผิด\",IF(L29=\"error\",\"ข้อมูลผิด\", N30))))))","v":"ข้อมูลผิด"},null,null,null,null,null,null,{"$f":"SUM(N25:N29)","v":{"$error":"#VALUE!"}}]
[null,null,null,null,"คะแนนรวม",null,{"$f":"IF(G10=\"ข้อมูลผิด\",\"ข้อมูลผิด\",IF(G17=\"ข้อมูลผิด\",\"ข้อมูลผิด\",IF(G24=\"ข้อมูลผิด\",\"ข้อมูลผิด\",IF(G30=\"ข้อมูลผิด\",\"ข้อมูลผิด\", ((G10*0.25)+(G17*0.25)+(G24*0.25)+(G30*0.25))))))","v":"ข้อมูลผิด"},null,null,null,null,null,null,{"$f":"(N10*0.25)+(N17*0.25)+(N24*0.25)+(N30*0.25)","v":{"$error":"#VALUE!"}}]

{"sheet":"หมวด 5","index":8,"n_rows":32,"n_cols":14,"rows_kept":32,"cut":false,"hidden":false,"merged":[[23,0,30,0],[26,2,27,2],[30,4,30,5],[30,6,30,7],[15,0,22,0],[15,2,16,2],[17,2,18,2],[19,2,21,2],[22,4,22,5],[31,4,31,5],[31,6,31,7],[23,2,25,2],[4,1,8,1],[9,1,14,1],[15,1,22,1],[23,1,30,1],[28,2,29,2],[22,6,22,7],[8,6,8,7],[10,2,11,2],[12,2,13,2],[14,4,14,5],[14,6,14,7],[5,2,6,2],[8,4,8,5],[28,8,29,8],[26,8,27,8],[23,8,25,8],[19,8,21,8],[17,8,18,8],[1,0,1,3],[15,8,16,8],[12,8,13,8],[10,8,11,8],[5,8,6,8],[2,8,3,8],[9,0,14,0],[4,0,8,0],[2,0,3,0],[2,1,3,1],[2,4,3,7],[2,2,3,3]]}
[]
["หมวด 5 การมุ่งเน้นบุคลากร"]
["รหัส","แนวทางการดำเนินการ","ประเด็นการพิจารณาการดำเนินการที่ครบถ้วน",null,"การดำเนินการ",null,null,null,"คำอธิบายผลการดำเนินการ"]
[]
["HR1","ส่วนราชการมีการจัดทำแผนด้านทรัพยากรบุคคลที่สนับสนุนยุทธศาสตร์ แผนดังกล่าวได้มีการประเมินความเปลี่ยนแปลงที่อาจเกิดขึ้นที่เกี่ยวข้องกับความต้องการด้านขีดความสามารถและอัตรากำลังบุคลากร รวมถึงได้นำแผนไปปฏิบัติเพื่อให้งานของส่วนราชการบรรลุผลสำเร็จ","A\n(0.4)","·  แสดงแผนด้านทรัพยากรบุคคลที่สนับสนุนยุทธศาสตร์ของส่วนราชการ และครอบคลุมตามแนวทางการพัฒนาสมรรถนะการบริหารทรัพยากรบุคคล (HR  Scorecard) \n\nกรณีจังหวัด  \nแสดงแผนเตรียมบุคลากรในการรองรับการเปลี่ยนแปลงด้านทรัพยากรบุคคล และสนับสนุนยุทธศาสตร์",null,"\nใช่",null,"\nไม่ใช่",null,false,false,{"$f":"IF(J5=K5,\"Error\",IF(J5=TRUE, 5, 1))","v":"Error"},0.4,{"$f":"L5*M5","v":{"$error":"#VALUE!"}}]
[null,null,"D\n(0.3)","·   มีการดำเนินการตามแผนด้านทรัพยากรบุคคล\n\nกรณีจังหวัด  \nแสดงการดำเนินการตามแผนเตรียมบุคลากรในการรองรับการเปลี่ยนแปลงด้านทรัพยากรบุคคล และสนับสนุนยุทธศาสตร์",null,"\nใช่",null,"\nไม่ใช่",null,false,false,{"$f":"IF(J6=K6,\"Error\",IF(J6=TRUE, 5, 1))","v":"Error"},{"$f":"0.3/2","v":0.15},{"$f":"L6*M6","v":{"$error":"#VALUE!"}}]
[null,null,null,"·   มีการติดตามประเมินผลสัมฤทธิ์ของแผน",null,"\nใช่",null,"\nไม่ใช่",null,false,false,"Error",{"$f":"0.3/2","v":0.15},{"$error":"#VALUE!"}]
[null,null,"R/I\n(0.3)","·   มีการบริหารและพัฒนาทรัพยากรบุคคลให้มีระบบงานและสมรรถนะที่สอดคล้องและนำไปสู่การบรรลุยุทธศาสตร์ขององค์การ",null,"\nใช่",null,"\nไม่ใช่",null,false,false,"Error",{"$f":"0.3","v":0.3},{"$error":"#VALUE!"}]
[null,null,null,null,"คะแนน",null,{"$f":"IF(L3=\"error\",\"ข้อมูลผิด\",IF(L4=\"error\",\"ข้อมูลผิด\",IF(L5=\"error\",\"ข้อมูลผิด\",IF(L6=\"error\",\"ข้อมูลผิด\",IF(L7=\"error\",\"ข้อมูลผิด\",IF(L8=\"error\",\"ข้อมูลผิด\", N9))))))","v":"ข้อมูลผิด"},null,null,null,null,null,null,{"$f":"SUM(N5:N8)","v":{"$error":"#VALUE!"}}]
["HR2","ส่วนราชการมีการดูแลปัจจัยสภาพแวดล้อมในการทำงาน ด้านสุขภาพ ความปลอดภัย และสวัสดิภาพในการทำงานของบุคลากร มีการประเมินและปรับปรุงปัจจัยดังกล่าว","A\n(0.4)","·   แสดงแนวทางและวิธีการในการวิเคราะห์ปัจจัยสภาพแวดล้อมในการทำงานด้านสุขภาพ สวัสดิภาพ และความปลอดภัยในการทำงานของบุคลากร ",null,"\nใช่",null,"\nไม่ใช่",null,false,false,"Error",{"$f":"0.4","v":0.4},{"$f":"L10*M10","v":{"$error":"#VALUE!"}}]
[null,null,"D\n(0.3)","·   มีการสำรวจปัจจัยด้านสภาพแวดล้อมในการทำงานเพื่อประเมินและจัดทำแผนงานและแนวทางในการปรับปรุงปัจจัยดังกล่าวที่สอดคล้องกับความต้องการขององค์การ",null,"\nใช่",null,"\nไม่ใช่",null,false,false,"Error",{"$f":"0.3/2","v":0.15},{"$error":"#VALUE!"}]
[null,null,null,"·   แสดงผลของการปรับปรุงสภาพแวดล้อมที่มีผลต่อการทำงานของบุคลากร",null,"\nใช่",null,"\nไม่ใช่",null,false,false,"Error",{"$f":"0.3/2","v":0.15},{"$error":"#VALUE!"}]
[null,null,"R/I\n(0.3)","·   องค์การมีสภาพแวดล้อมในการทำงานด้านสุขภาพ สวัสดิภาพ และความปลอดภัยในการทำงานที่ดีและมีความเหมาะสม",null,"\nใช่",null,"\nไม่ใช่",null,false,false,"Error",{"$f":"0.3/2","v":0.15},{"$error":"#VALUE!"}]
[null,null,null,"·   แสดงให้เห็นว่าการปรับสภาพแวดล้อมในการทำงานมีส่วนช่วยสนับสนุนการปฏิบัติงานที่ดีขึ้นของบุคลากร",null,"\nใช่",null,"\nไม่ใช่",null,false,false,"Error",{"$f":"0.3/2","v":0.15},{"$error":"#VALUE!"}]
[null,null,null,null,"คะแนน",null,{"$f":"IF(L9=\"error\",\"ข้อมูลผิด\",IF(L10=\"error\",\"ข้อมูลผิด\",IF(L11=\"error\",\"ข้อมูลผิด\",IF(L12=\"error\",\"ข้อมูลผิด\",IF(L13=\"error\",\"ข้อมูลผิด\",IF(L14=\"error\",\"ข้อมูลผิด\", N15))))))","v":"ข้อมูลผิด"},null,null,null,null,null,null,{"$f":"SUM(N10:N14)","v":{"$error":"#VALUE!"}}]
["HR3","ส่วนราชการมีการประเมินความผูกพันของบุคลากร มีวิธีการและตัววัดที่ใช้ในการประเมินความผูกพันของบุคลากรที่มีความแตกต่างกันในแต่ละกลุ่มของบุคลากร","A\n(0.4)","·   มีแนวทางวิธีการในการค้นหาและวิเคราะห์ปัจจัยที่มีผลต่อความผูกพันของบุคลากร",null,"\nใช่",null,"\nไม่ใช่",null,false,false,"Error",{"$f":"0.4/2","v":0.2},{"$f":"L16*M16","v":{"$error":"#VALUE!"}}]
[null,null,null,"·   แสดงแนวทางและวิธีการในการวิเคราะห์และสร้างความผูกพันของบุคลากรในแต่ละกลุ่มบุคลากร",null,"\nใช่",null,"\nไม่ใช่",null,false,false,"Error",{"$f":"0.4/2","v":0.2},{"$error":"#VALUE!"}]
[null,null,"D\n(0.3)","·   แสดงผลของการสร้างความผูกพันให้เกิดขึ้นในส่วนราชการ",null,"\nใช่",null,"\nไม่ใช่",null,false,false,"Error",{"$f":"0.3/2","v":0.15},{"$error":"#VALUE!"}]
[null,null,null,"·   มีวิธีการที่เหมาะสมสำหรับบุคลากรแต่ละกลุ่มในการสร้างให้เกิดความผูกพันต่อองค์การ",null,"\nใช่",null,"\nไม่ใช่",null,false,false,"Error",{"$f":"0.3/2","v":0.15},{"$error":"#VALUE!"}]
[null,null,"R/I\n(0.3)","·   แสดงให้เห็นว่าผลจากการสร้างความผูกพันช่วยส่งเสริมให้บุคลากรปฏิบัติงานได้อย่างมีประสิทธิผลและเต็มความสามารถ",null,"\nใช่",null,"\nไม่ใช่",null,false,false,"Error",{"$f":"0.3/3","v":9.9999999999999992E-2},{"$error":"#VALUE!"}]
[null,null,null,"·   บุคลากรมีความมุ่งมั่นและเต็มใจในการปฏิบัติงานเพื่อให้องค์การประสบความสำเร็จ",null,"\nใช่",null,"\nไม่ใช่",null,false,false,"Error",9.9999999999999992E-2,{"$f":"L21*M21","v":{"$error":"#VALUE!"}}]
[null,null,null,"·   มีการเชื่อมโยงกับผลการปฏิบัติงานขององค์การและความสำเร็จของส่วนราชการ",null,"\nใช่",null,"\nไม่ใช่",null,false,false,"Error",9.9999999999999992E-2,{"$error":"#VALUE!"}]
[null,null,null,null,"คะแนน",null,{"$f":"IF(L17=\"error\",\"ข้อมูลผิด\",IF(L18=\"error\",\"ข้อมูลผิด\",IF(L19=\"error\",\"ข้อมูลผิด\",IF(L20=\"error\",\"ข้อมูลผิด\",IF(L21=\"error\",\"ข้อมูลผิด\",IF(L22=\"error\",\"ข้อมูลผิด\", N23))))))","v":"ข้อมูลผิด"},null,null,null,null,null,null,{"$f":"SUM(N16:N22)","v":{"$error":"#VALUE!"}}]
["HR4","ส่วนราชการมีการจัดทำระบบการเรียนรู้และการพัฒนาที่สนับสนุนความต้องการของส่วนราชการและการพัฒนาตนเอง รวมถึงมีวิธีประเมินประสิทธิผลและประสิทธิภาพของระบบการเรียนรู้และการพัฒนา","A\n(0.4)","·   มีการวิเคราะห์ความต้องการขององค์การในด้านศักยภาพของบุคลากรเพื่อเตรียมความพร้อมบุคลากรเพื่อรองรับความต้องการขององค์การในปัจจุบันและอนาคต",null,"\nใช่",null,"\nไม่ใช่",null,false,false,"Error",{"$f":"0.4/3","v":0.13333333333333333},{"$f":"L24*M24","v":{"$error":"#VALUE!"}}]
[null,null,null,"·   แสดงแนวทางและวิธีการสร้างระบบการเรียนรู้และพัฒนาของบุคลากรที่สอดคล้องกับความต้องการขององค์การ",null,"\nใช่",null,"\nไม่ใช่",null,false,false,"Error",{"$f":"0.4/3","v":0.13333333333333333},{"$f":"L25*M25","v":{"$error":"#VALUE!"}}]
[null,null,null,"·   แสดงแนวทางและวิธีการในการประเมินประสิทธิภาพและประสิทธิผลของระบบการเรียนรู้และการพัฒนา",null,"\nใช่",null,"\nไม่ใช่",null,false,false,"Error",0.13333333333333333,{"$error":"#VALUE!"}]
[null,null,"D/L\n(0.3)","·    มีการพัฒนาบุคลากรตามแนวทางและวิธีการในการพัฒนาที่เหมาะสมสอดคล้องกับกลุ่มบุคลากรแต่ละกลุ่ม",null,"\nใช่",null,"\nไม่ใช่",null,false,false,"Error",{"$f":"0.3/2","v":0.15},{"$error":"#VALUE!"}]
[null,null,null,"·   การนำผลของการประเมินไปสู่การปรับปรุงระบบการเรียนรู้และพัฒนาบุคลากร",null,"\nใช่",null,"\nไม่ใช่",null,false,false,"Error",{"$f":"0.3/2","v":0.15},{"$error":"#VALUE!"}]
[null,null,"R/I\n(0.3)","·   การเพิ่มศักยภาพของบุคลากรในการปฏิบัติงานได้อย่างเต็มที่",null,"\nใช่",null,"\nไม่ใช่",null,false,false,"Error",{"$f":"0.3/2","v":0.15},{"$error":"#VALUE!"}]
[null,null,null,"·   บุคลากรมีศักยภาพ สามารถรองรับความต้องการขององค์การและการเปลี่ยนแปลงที่เกิดขึ้นในอนาคต",null,"\nใช่",null,"\nไม่ใช่",null,false,false,"Error",{"$f":"0.3/2","v":0.15},{"$f":"L30*M30","v":{"$error":"#VALUE!"}}]
[null,null,null,null,"คะแนน",null,{"$f":"IF(L25=\"error\",\"ข้อมูลผิด\",IF(L26=\"error\",\"ข้อมูลผิด\",IF(L27=\"error\",\"ข้อมูลผิด\",IF(L28=\"error\",\"ข้อมูลผิด\",IF(L29=\"error\",\"ข้อมูลผิด\",IF(L30=\"error\",\"ข้อมูลผิด\", N31))))))","v":"ข้อมูลผิด"},null,null,null,null,null,null,{"$f":"SUM(N24:N30)","v":{"$error":"#VALUE!"}}]
[null,null,null,null,"คะแนนรวม",null,{"$f":"IF(G9=\"ข้อมูลผิด\",\"ข้อมูลผิด\",IF(G15=\"ข้อมูลผิด\",\"ข้อมูลผิด\",IF(G23=\"ข้อมูลผิด\",\"ข้อมูลผิด\",IF(G31=\"ข้อมูลผิด\",\"ข้อมูลผิด\", ((G9*0.25)+(G15*0.25)+(G23*0.25)+(G31*0.25))))))","v":"ข้อมูลผิด"},null,null,null,null,null,null,{"$f":"(N9*0.25)+(N15*0.25)+(N23*0.25)+(N31*0.25)","v":{"$error":"#VALUE!"}}]

{"sheet":"หมวด 6","index":9,"n_rows":38,"n_cols":14,"rows_kept":38,"cut":false,"hidden":false,"merged":[[11,0,17,0],[13,2,15,2],[17,4,17,5],[2,0,3,0],[2,1,3,1],[2,4,3,7],[4,0,10,0],[10,4,10,5],[10,6,10,7],[2,2,3,3],[36,6,36,7],[37,4,37,5],[37,6,37,7],[31,1,36,1],[25,0,30,0],[25,2,26,2],[30,4,30,5],[30,6,30,7],[25,1,30,1],[27,2,28,2],[31,0,36,0],[33,2,35,2],[36,4,36,5],[27,8,28,8],[33,8,35,8],[2,8,3,8],[4,8,6,8],[8,8,9,8],[11,8,12,8],[13,8,15,8],[1,0,1,3],[19,8,20,8],[21,8,23,8],[25,8,26,8],[18,1,24,1],[4,1,10,1],[11,1,17,1],[4,2,6,2],[8,2,9,2],[19,2,20,2],[21,2,23,2],[17,6,17,7],[18,0,24,0],[24,4,24,5],[24,6,24,7],[11,2,12,2]]}
[]
["หมวด 6 การมุ่งเน้นระบบการปฏิบัติการ"]
["รหัส","แนวทางการดำเนินการ","ประเด็นการพิจารณาการดำเนินการที่ครบถ้วน",null,"การดำเนินการ",null,null,null,"คำอธิบายผลการดำเนินการ"]
[]
["PM1","ส่วนราชการมีการกำหนดข้อกำหนดที่สำคัญของผลผลิต การบริการ และกระบวนการทำงานที่สำคัญ รวมถึงมีวิธีการออกแบบผลผลิต การบริการ และกระบวนการทำงานให้เป็นไปตามข้อกำหนดที่สำคัญทั้งหมด","A\n(0.4)","·    มีการกำหนดผลผลิต การบริการ และกระบวนการทำงานที่สำคัญขององค์การที่มีความสอดคล้องกับพันธกิจ ยุทธศาสตร์ และความต้องการของผู้รับบริการและผู้มีส่วนได้ส่วนเสียที่สำคัญ",null,"\nใช่",null,"\nไม่ใช่",null,false,false,{"$f":"IF(J5=K5,\"Error\",IF(J5=TRUE, 5, 1))","v":"Error"},{"$f":"0.4/3","v":0.13333333333333333},{"$f":"L5*M5","v":{"$error":"#VALUE!"}}]
[null,null,null,"·    แนวทางและวิธีการในการกำหนดข้อกำหนดที่สำคัญของผลผลิต การบริการ และกระบวนการทำงานที่สำคัญของส่วนราชการ",null,"\nใช่",null,"\nไม่ใช่",null,false,false,{"$f":"IF(J6=K6,\"Error\",IF(J6=TRUE, 5, 1))","v":"Error"},{"$f":"0.4/3","v":0.13333333333333333},{"$f":"L6*M6","v":{"$error":"#VALUE!"}}]
[null,null,null,"·    มีแนวทางและวิธีการในการออกแบบผลผลิต การบริการ และกระบวนการทำงานที่สำคัญขององค์การ",null,"\nใช่",null,"\nไม่ใช่",null,false,false,"Error",0.13333333333333333,{"$error":"#VALUE!"}]
[null,null,"D/R/I\n(0.6)","·     มีข้อกำหนดที่สำคัญของผลผลิต การบริการ และกระบวนการทำงานที่สำคัญขององค์การ",null,"\nใช่",null,"\nไม่ใช่",null,false,false,"Error",{"$f":"0.3","v":0.3},{"$f":"L8*M8","v":{"$error":"#VALUE!"}}]
[null,null,null,"·    การออกแบบผลผลิต การบริการ และกระบวนการทำงานเป็นไปตามข้อกำหนดที่สำคัญ",null,"\nใช่",null,"\nไม่ใช่",null,false,false,"Error",{"$f":"0.3/2","v":0.15},{"$error":"#VALUE!"}]
[null,null,null,"·   แสดงให้เห็นว่าการออกแบบมีประสิทธิภาพและมีประสิทธิผล โดยมีการลดรอบระยะเวลา การลดต้นทุน รวมทั้งมีความสอดคล้องกับความต้องการของผู้รับบริการผู้มีส่วนได้ส่วนเสีย",null,"\nใช่",null,"\nไม่ใช่",null,false,false,"Error",{"$f":"0.3/2","v":0.15},{"$error":"#VALUE!"}]
[null,null,null,null,"คะแนน",null,{"$f":"IF(L5=\"error\",\"ข้อมูลผิด\",IF(L6=\"error\",\"ข้อมูลผิด\",IF(L7=\"error\",\"ข้อมูลผิด\",IF(L8=\"error\",\"ข้อมูลผิด\",IF(L9=\"error\",\"ข้อมูลผิด\",IF(L10=\"error\",\"ข้อมูลผิด\", N11))))))","v":"ข้อมูลผิด"},null,null,null,null,null,null,{"$f":"SUM(N5:N10)","v":{"$error":"#VALUE!"}}]
["PM2","ส่วนราชการมีการปฏิบัติงานของกระบวนการที่เป็นไปตามข้อกำหนดที่สำคัญ มีการกำหนดตัววัดหรือตัวชี้วัดผลการดำเนินการที่สำคัญของกระบวนการที่ส่วนราชการใช้ในการควบคุม และปรับปรุงกระบวนการ รวมถึงเชื่อมโยงกับผลการดำเนินการและคุณภาพของผลผลิตและการบริการที่ส่งมอบ","A\n(0.4)","·    มีการกำหนดมาตรฐานการปฏิบัติงานของกระบวนการที่สอดคล้องกับผลผลิต การบริการ และกระบวนการที่ได้ออกแบบไว้",null,"\nใช่",null,"\nไม่ใช่",null,false,false,"Error",{"$f":"0.4/2","v":0.2},{"$f":"L12*M12","v":{"$error":"#VALUE!"}}]
[null,null,null,"·    มีระบบในการควบคุมและติดตามกระบวนการ และกำหนดตัวชี้วัดให้เป็นไปตามข้อกำหนดที่สำคัญ",null,"\nใช่",null,"\nไม่ใช่",null,false,false,"Error",{"$f":"0.4/2","v":0.2},{"$f":"L13*M13","v":{"$error":"#VALUE!"}}]
[null,null,"D/L\n(0.3)","·    การสื่อสารมาตรฐานการปฏิบัติงานให้บุคลากรที่เกี่ยวข้องทราบเพื่อปฏิบัติ",null,"\nใช่",null,"\nไม่ใช่",null,false,false,"Error",{"$f":"0.3/3","v":9.9999999999999992E-2},{"$error":"#VALUE!"}]
[null,null,null,"·    มีการปฏิบัติตามมาตรฐานของกระบวนการที่ได้ออกแบบไว้",null,"\nใช่",null,"\nไม่ใช่",null,false,false,"Error",{"$f":"0.3/3","v":9.9999999999999992E-2},{"$error":"#VALUE!"}]
[null,null,null,"·    การทบทวนผลการดำเนินการตามตัวชี้วัดของกระบวนการ เพื่อนำไปสู่การปรับปรุงกระบวนการ",null,"\nใช่",null,"\nไม่ใช่",null,false,false,"Error",9.9999999999999992E-2,{"$error":"#VALUE!"}]
[null,null,"R/I\n(0.3)","·    แสดงความเชื่อมโยงของผลตัวชี้วัดกระบวนการกับผลการดำเนินงานและคุณภาพของผลผลิตและการบริการที่ส่งมอบ",null,"\nใช่",null,"\nไม่ใช่",null,false,false,"Error",{"$f":"0.3","v":0.3},{"$error":"#VALUE!"}]
[null,null,null,null,"คะแนน",null,{"$f":"IF(L12=\"error\",\"ข้อมูลผิด\",IF(L13=\"error\",\"ข้อมูลผิด\",IF(L14=\"error\",\"ข้อมูลผิด\",IF(L15=\"error\",\"ข้อมูลผิด\",IF(L16=\"error\",\"ข้อมูลผิด\",IF(L17=\"error\",\"ข้อมูลผิด\", N18))))))","v":"ข้อมูลผิด"},null,null,null,null,null,null,{"$f":"SUM(N12:N17)","v":{"$error":"#VALUE!"}}]
["PM3","ส่วนราชการมีวิธีการในการปรับปรุงกระบวนการทำงานเพื่อปรับปรุงผลผลิต การบริการ และผลการดำเนินการ การลดความผิดพลาด การทำงานซ้ำ และความสูญเสียของกระบวนการ","A\n(0.4)","·    แนวทางและวิธีการที่ส่วนราชการใช้ในการปรับปรุงกระบวนการเพื่อลดข้อผิดพลาด การทำงานซ้ำ และการสูญเสียของกระบวนการ",null,"\nใช่",null,"\nไม่ใช่",null,false,false,"Error",{"$f":"0.4","v":0.4},{"$f":"L19*M19","v":{"$error":"#VALUE!"}}]
[null,null,"D/L\n(0.3)","·    มีการแลกเปลี่ยนเรียนรู้ปัญหาและแนวทางการแก้ไขปัญหาเพื่อปรับปรุงกระบวนการ",null,"\nใช่",null,"\nไม่ใช่",null,false,false,"Error",{"$f":"0.3/2","v":0.15},{"$error":"#VALUE!"}]
[null,null,null,"·    โครงการ/กิจกรรมในการปรับปรุงกระบวนการ (ยกตัวอย่างกระบวนการที่ได้ปรับปรุง)",null,"\nใช่",null,"\nไม่ใช่",null,false,false,"Error",{"$f":"0.3/2","v":0.15},{"$error":"#VALUE!"}]
[null,null,"R/I\n(0.3)","·    แสดงให้เห็นผลการดำเนินการของกระบวนการมีแนวโน้มที่ดีขึ้น โดยมีการรวบรวมสารสนเทศของกระบวนการอย่างเป็นระบบ",null,"\nใช่",null,"\nไม่ใช่",null,false,false,"Error",{"$f":"0.3/3","v":9.9999999999999992E-2},{"$error":"#VALUE!"}]
[null,null,null,"·    นำสารสนเทศจากผู้รับบริการและผู้มีส่วนได้ส่วนเสียมาใช้ในการปรับปรุงกระบวนการ",null,"\nใช่",null,"\nไม่ใช่",null,false,false,"Error",9.9999999999999992E-2,{"$f":"L23*M23","v":{"$error":"#VALUE!"}}]
[null,null,null,"·    แสดงให้เห็นถึงการลดความผิดพลาด การทำงานซ้ำ และความสูญเสียของกระบวนการ",null,"\nใช่",null,"\nไม่ใช่",null,false,false,"Error",9.9999999999999992E-2,{"$error":"#VALUE!"}]
[null,null,null,null,"คะแนน",null,{"$f":"IF(L19=\"error\",\"ข้อมูลผิด\",IF(L20=\"error\",\"ข้อมูลผิด\",IF(L21=\"error\",\"ข้อมูลผิด\",IF(L22=\"error\",\"ข้อมูลผิด\",IF(L23=\"error\",\"ข้อมูลผิด\",IF(L24=\"error\",\"ข้อมูลผิด\", N25))))))","v":"ข้อมูลผิด"},null,null,null,null,null,null,{"$f":"SUM(N19:N24)","v":{"$error":"#VALUE!"}}]
["PM4","ส่วนราชการมีวิธีการเตรียมความพร้อมต่อภัยพิบัติหรือภาวะฉุกเฉิน ได้คำนึงถึงการป้องกัน ความต่อเนื่องของการปฏิบัติการ และการทำให้คืนสู่สภาพเดิม","A\n(0.4)","·    มีการประเมินความรุนแรงของภัยพิบัติหรือภาวะฉุกเฉินที่มีผลกระทบต่อการดำเนินงานตามพันธกิจที่สำคัญขององค์การ",null,"\nใช่",null,"\nไม่ใช่",null,false,false,"Error",{"$f":"0.4/2","v":0.2},{"$f":"L26*M26","v":{"$error":"#VALUE!"}}]
[null,null,null,"·    แสดงแผนการเตรียมความพร้อมต่อภัยพิบัติหรือภาวะฉุกเฉิน เพื่อให้การทำงานเป็นไปอย่างต่อเนื่อง",null,"\nใช่",null,"\nไม่ใช่",null,false,false,"Error",{"$f":"0.4/2","v":0.2},{"$error":"#VALUE!"}]
[null,null,"D/L\n(0.3)","·    การสื่อสารและซักซ้อมให้ผู้ที่เกี่ยวข้องรับทราบถึงแนวทางในการปฏิบัติ",null,"\nใช่",null,"\nไม่ใช่",null,false,false,"Error",{"$f":"0.3/2","v":0.15},{"$error":"#VALUE!"}]
[null,null,null,"·    มีการทบทวนเพื่อปรับปรุงแผนให้มีความเหมาะสม และทันสมัยอยู่เสมอ",null,"\nใช่",null,"\nไม่ใช่",null,false,false,"Error",{"$f":"0.3/2","v":0.15},{"$error":"#VALUE!"}]
[null,null,"R/I\n(0.3)","·    แสดงให้เห็นความสามารถในการให้บริการอย่างต่อเนื่องของระบบปฏิบัติการ",null,"\nใช่",null,"\nไม่ใช่",null,false,false,"Error",{"$f":"0.3","v":0.3},{"$error":"#VALUE!"}]
[null,null,null,null,"คะแนน",null,{"$f":"IF(L25=\"error\",\"ข้อมูลผิด\",IF(L26=\"error\",\"ข้อมูลผิด\",IF(L27=\"error\",\"ข้อมูลผิด\",IF(L28=\"error\",\"ข้อมูลผิด\",IF(L29=\"error\",\"ข้อมูลผิด\",IF(L30=\"error\",\"ข้อมูลผิด\", N31))))))","v":"ข้อมูลผิด"},null,null,null,null,null,null,{"$f":"SUM(N26:N30)","v":{"$error":"#VALUE!"}}]
["PM5","ส่วนราชการมีวิธีการในการพิจารณาโอกาสในการสร้างให้เกิดนวัตกรรมที่สามารถนำมาใช้ประโยชน์ได้ในกระบวนการทำงาน","A\n(0.4)","·    แสดงแนวทางและวิธีการในการสร้างบรรยากาศเพื่อให้เกิดนวัตกรรมในส่วนราชการ",null,"\nใช่",null,"\nไม่ใช่",null,false,false,"Error",{"$f":"0.4","v":0.4},{"$f":"L32*M32","v":{"$error":"#VALUE!"}}]
[null,null,"D\n(0.3)","·    การแลกเปลี่ยนเรียนรู้เกี่ยวกับนวัตกรรมในการทำงาน เพื่อสร้างบรรยากาศที่ทำให้เกิดนวัตกรรมที่สามารถนำมาใช้ประโยชน์ได้ในกระบวนการทำงาน",null,"\nใช่",null,"\nไม่ใช่",null,false,false,"Error",{"$f":"0.3","v":0.3},{"$error":"#VALUE!"}]
[null,null,"R/I\n(0.3)","·    เกิดนวัตกรรมที่สร้างการเปลี่ยนแปลงการบริการและการปฏิบัติงานและเป็นประโยชน์ต่อองค์การ",null,"\nใช่",null,"\nไม่ใช่",null,false,false,"Error",{"$f":"0.3/3","v":9.9999999999999992E-2},{"$error":"#VALUE!"}]
[null,null,null,"·    นวัตกรรมที่เกิดขึ้นตอบสนองต่อการบรรลุยุทธศาสตร์ของส่วนราชการ ",null,"\nใช่",null,"\nไม่ใช่",null,false,false,"Error",{"$f":"0.3/3","v":9.9999999999999992E-2},{"$error":"#VALUE!"}]
[null,null,null,"·    ผู้รับบริการและผู้มีส่วนได้ส่วนเสียมีความพึงพอใจในการบริการและการปฏิบัติงาน",null,"\nใช่",null,"\nไม่ใช่",null,false,false,"Error",9.9999999999999992E-2,{"$error":"#VALUE!"}]
[null,null,null,null,"คะแนน",null,{"$f":"IF(L31=\"error\",\"ข้อมูลผิด\",IF(L32=\"error\",\"ข้อมูลผิด\",IF(L33=\"error\",\"ข้อมูลผิด\",IF(L34=\"error\",\"ข้อมูลผิด\",IF(L35=\"error\",\"ข้อมูลผิด\",IF(L36=\"error\",\"ข้อมูลผิด\", N37))))))","v":"ข้อมูลผิด"},null,null,null,null,null,null,{"$f":"SUM(N32:N36)","v":{"$error":"#VALUE!"}}]
[null,null,null,null,"คะแนนรวม",null,{"$f":"IF(G11=\"ข้อมูลผิด\",\"ข้อมูลผิด\",IF(G18=\"ข้อมูลผิด\",\"ข้อมูลผิด\",IF(G25=\"ข้อมูลผิด\",\"ข้อมูลผิด\",IF(G31=\"ข้อมูลผิด\",\"ข้อมูลผิด\",IF(G37=\"ข้อมูลผิด\",\"ข้อมูลผิด\", ((G11*0.2)+(G18*0.2)+(G25*0.2)+(G31*0.2)+(G37*0.2)))))))","v":"ข้อมูลผิด"},null,null,null,null,null,null,{"$f":"(N11*0.2)+(N18*0.2)+(N25*0.2)+(N31*0.2)+(N37*0.2)","v":{"$error":"#VALUE!"}}]

{"sheet":"หมวด 7","index":10,"n_rows":32,"n_cols":23,"rows_kept":32,"cut":false,"hidden":false,"merged":[[1,0,1,21],[2,14,2,18],[2,20,2,21],[3,0,3,13],[3,19,3,21],[2,0,2,13],[4,3,4,13],[6,3,6,13],[7,0,7,1],[7,2,7,13],[5,3,5,13],[12,19,12,21],[13,3,13,13],[8,0,8,13],[8,19,8,21],[9,3,9,13],[10,3,10,13],[14,3,14,13],[15,3,15,13],[16,0,16,1],[16,2,16,13],[11,0,11,1],[11,2,11,13],[12,0,12,13],[22,19,22,21],[23,3,23,13],[17,0,17,13],[17,19,17,21],[18,3,18,13],[19,3,19,13],[20,3,20,13],[24,3,24,13],[25,0,25,1],[25,2,25,13],[21,0,21,1],[21,2,21,13],[22,0,22,13],[31,18,31,20],[26,0,26,13],[27,3,27,13],[28,3,28,13],[29,3,29,13],[30,0,30,1],[30,2,30,13],[31,0,31,12],[31,13,31,15],[31,16,31,17]]}
[]
["หมวด 7 ผลลัพธ์การดำเนินการ (Results)"]
["ตัวชี้วัดผลลัพธ์",null,null,null,null,null,null,null,null,null,null,null,null,null,"เกณฑ์การให้คะแนน",null,null,null,null,"ผลงาน","คะแนน"]
["7.1 ผลลัพธ์ด้านประสิทธิผลและการบรรลุพันธกิจ",null,null,null,null,null,null,null,null,null,null,null,null,null,1,2,3,4,5]
["●",{"$f":"ISNUMBER(T5)","v":false},"RM 1","ร้อยละความสำเร็จของร้อยละเฉลี่ยถ่วงน้ำหนักในการบรรลุเป้าหมายตามแผนปฏิบัติราชการของส่วนราชการ",null,null,null,null,null,null,null,null,null,null,65,70,75,80,85,null,"%",{"$f":"IF(ISNUMBER(T5)=FALSE,\"\",W5)","v":""},{"$f":"6-IF(R5>=S5,IF(T5<=S5,1,IF(T5<=R5,1+(T5-S5)/(R5-S5),IF(T5<=Q5,2+(T5-R5)/(Q5-R5),IF(T5<=P5,3+(T5-Q5)/(P5-Q5),IF(T5<=O5,4+(T5-P5)/(O5-P5),5))))),IF(T5>=S5,1,IF(T5>=R5,1+(S5-T5)/(S5-R5),IF(T5>=Q5,2+(R5-T5)/(R5-Q5),IF(T5>=P5,3+(Q5-T5)/(Q5-P5),IF(T5>=O5,4+(P5-T5)/(P5-O5),5))))))","v":1}]
["●",{"$f":"ISNUMBER(T6)","v":false},"RM 2","ร้อยละความสำเร็จของร้อยละเฉลี่ยถ่วงน้ำหนักในการบรรลุเป้าหมายตัวชี้วัดคำรับรองการปฏิบัติราชการมิติด้านประสิทธิผลการปฏิบัติราชการ  ",null,null,null,null,null,null,null,null,null,null,65,70,75,80,85,null,"%",{"$f":"IF(ISNUMBER(T6)=FALSE,\"\",W6)","v":""},{"$f":"6-IF(R6>=S6,IF(T6<=S6,1,IF(T6<=R6,1+(T6-S6)/(R6-S6),IF(T6<=Q6,2+(T6-R6)/(Q6-R6),IF(T6<=P6,3+(T6-Q6)/(P6-Q6),IF(T6<=O6,4+(T6-P6)/(O6-P6),5))))),IF(T6>=S6,1,IF(T6>=R6,1+(S6-T6)/(S6-R6),IF(T6>=Q6,2+(R6-T6)/(R6-Q6),IF(T6>=P6,3+(Q6-T6)/(Q6-P6),IF(T6>=O6,4+(P6-T6)/(P6-O6),5))))))","v":1}]
["●",{"$f":"ISNUMBER(T7)","v":false},null,null,null,null,null,null,null,null,null,null,null,null,null,null,null,null,null,null,null,"",5]
[null,null," ผลลัพธ์การดำเนินการด้านประสิทธิผลและการบรรลุพันธกิจ",null,null,null,null,null,null,null,null,null,null,null,null,null,null,null,null,{"$f":"IF(COUNT(T5:T7)>1,\"คะแนนเฉลี่ย\",SUM(T5:T7))","v":0},null,{"$f":"IF(T8=\"คะแนนเฉลี่ย\",AVERAGE(V5:V7),SUM(V5:V7))","v":0}]
["7.2 ผลลัพธ์ด้านการให้ความสำคัญผู้รับบริการและผู้มีส่วนได้ส่วนเสีย",null,null,null,null,null,null,null,null,null,null,null,null,null,1,2,3,4,5]
[null,{"$f":"ISNUMBER(T10)","v":false},"RM 3","ร้อยละความพึงพอใจของผู้รับบริการและผู้มีส่วนได้ส่วนเสีย",null,null,null,null,null,null,null,null,null,null,65,70,75,80,85,null,"%",{"$f":"IF(ISNUMBER(T10)=FALSE,\"\",W10)","v":""},{"$f":"6-IF(R10>=S10,IF(T10<=S10,1,IF(T10<=R10,1+(T10-S10)/(R10-S10),IF(T10<=Q10,2+(T10-R10)/(Q10-R10),IF(T10<=P10,3+(T10-Q10)/(P10-Q10),IF(T10<=O10,4+(T10-P10)/(O10-P10),5))))),IF(T10>=S10,1,IF(T10>=R10,1+(S10-T10)/(S10-R10),IF(T10>=Q10,2+(R10-T10)/(R10-Q10),IF(T10>=P10,3+(Q10-T10)/(Q10-P10),IF(T10>=O10,4+(P10-T10)/(P10-O10),5))))))","v":1}]
["●",{"$f":"ISNUMBER(T11)","v":false},null,null,null,null,null,null,null,null,null,null,null,null,null,null,null,null,null,null,"%","",5]
[null,null," ผลลัพธ์การดำเนินการด้านการให้ความสำคัญผู้รับบริการและผู้มีส่วนได้ส่วนเสีย",null,null,null,null,null,null,null,null,null,null,null,null,null,null,null,null,{"$f":"IF(COUNT(T10:T11)>1,\"คะแนนเฉลี่ย\",SUM(T10:T11))","v":0},null,{"$f":"IF(T12=\"คะแนนเฉลี่ย\",AVERAGE(V10:V11),SUM(V10:V11))","v":0}]
["7.3 ผลลัพธ์ด้านการมุ่งเน้นบุคลากร",null,null,null,null,null,null,null,null,null,null,null,null,null,1,2,3,4,5]
["●",{"$f":"ISNUMBER(T14)","v":false},"RM 4","ร้อยละความสำเร็จของการดำเนินการตามแผนกลยุทธ์การบริหารทรัพยากรบุคคล",null,null,null,null,null,null,null,null,null,null,60,70,80,90,100,null,"%",{"$f":"IF(ISNUMBER(T14)=FALSE,\"\",W14)","v":""},{"$f":"6-IF(R14>=S14,IF(T14<=S14,1,IF(T14<=R14,1+(T14-S14)/(R14-S14),IF(T14<=Q14,2+(T14-R14)/(Q14-R14),IF(T14<=P14,3+(T14-Q14)/(P14-Q14),IF(T14<=O14,4+(T14-P14)/(O14-P14),5))))),IF(T14>=S14,1,IF(T14>=R14,1+(S14-T14)/(S14-R14),IF(T14>=Q14,2+(R14-T14)/(R14-Q14),IF(T14>=P14,3+(Q14-T14)/(Q14-P14),IF(T14>=O14,4+(P14-T14)/(P14-O14),5))))))","v":1}]
["●",{"$f":"ISNUMBER(T15)","v":false},"RM 5","ร้อยละความสำเร็จของการดำเนินการตามแผนสร้างความผูกพันของบุคลากร",null,null,null,null,null,null,null,null,null,null,60,70,80,90,100,null,"%","",1]
["●",{"$f":"ISNUMBER(T16)","v":false},null,null,null,null,null,null,null,null,null,null,null,null,null,null,null,null,null,null,"%","",5]
[null,null," ผลลัพธ์การดำเนินการด้านการมุ่งเน้นบุคลากร",null,null,null,null,null,null,null,null,null,null,null,null,null,null,null,null,{"$f":"IF(COUNT(T14:T16)>1,\"คะแนนเฉลี่ย\",SUM(T14:T16))","v":0},null,{"$f":"IF(T17=\"คะแนนเฉลี่ย\",AVERAGE(V14:V16),SUM(V14:V16))","v":0}]
["7.4 ผลลัพธ์ด้านการนำองค์การ และการกำกับดูแลส่วนราชการ",null,null,null,null,null,null,null,null,null,null,null,null,null,1,2,3,4,5]
["●",{"$f":"ISNUMBER(T19)","v":false},"RM 6","ระดับคุณธรรมและความโปร่งใสการดำเนินงานของหน่วยงาน (ITA)",null,null,null,null,null,null,null,null,null,null,1,2,3,4,5,null,"%",{"$f":"IF(ISNUMBER(T19)=FALSE,\"\",W19)","v":""},{"$f":"6-IF(R19>=S19,IF(T19<=S19,1,IF(T19<=R19,1+(T19-S19)/(R19-S19),IF(T19<=Q19,2+(T19-R19)/(Q19-R19),IF(T19<=P19,3+(T19-Q19)/(P19-Q19),IF(T19<=O19,4+(T19-P19)/(O19-P19),5))))),IF(T19>=S19,1,IF(T19>=R19,1+(S19-T19)/(S19-R19),IF(T19>=Q19,2+(R19-T19)/(R19-Q19),IF(T19>=P19,3+(Q19-T19)/(Q19-P19),IF(T19>=O19,4+(P19-T19)/(P19-O19),5))))))","v":1}]
["●",{"$f":"ISNUMBER(T20)","v":false},"RM 7","ร้อยละความพึงพอใจของบุคลากรที่มีต่อการนำองค์การของผู้บริหาร",null,null,null,null,null,null,null,null,null,null,65,70,75,80,85,null,"%","",1]
["●",{"$f":"ISNUMBER(T21)","v":false},null,null,null,null,null,null,null,null,null,null,null,null,null,null,null,null,null,null,"%","",5]
[null,null," ผลลัพธ์การดำเนินการด้านการนำองค์การ และการกำกับดูแลส่วนราชการ",null,null,null,null,null,null,null,null,null,null,null,null,null,null,null,null,{"$f":"IF(COUNT(T19:T21)>1,\"คะแนนเฉลี่ย\",SUM(T19:T21))","v":0},null,{"$f":"IF(T22=\"คะแนนเฉลี่ย\",AVERAGE(V19:V21),SUM(V19:V21))","v":0}]
["7.5 ผลลัพธ์ด้านงบประมาณ การเงิน และการเติบโต",null,null,null,null,null,null,null,null,null,null,null,null,null,1,2,3,4,5]
["●",{"$f":"ISNUMBER(T24)","v":false},"RM 8","ร้อยละการเบิกจ่ายเงินงบประมาณรายจ่ายภาพรวม ",null,null,null,null,null,null,null,null,null,null,80,85,90,95,100,null,"%",{"$f":"IF(ISNUMBER(T24)=FALSE,\"\",W24)","v":""},{"$f":"6-IF(R24>=S24,IF(T24<=S24,1,IF(T24<=R24,1+(T24-S24)/(R24-S24),IF(T24<=Q24,2+(T24-R24)/(Q24-R24),IF(T24<=P24,3+(T24-Q24)/(P24-Q24),IF(T24<=O24,4+(T24-P24)/(O24-P24),5))))),IF(T24>=S24,1,IF(T24>=R24,1+(S24-T24)/(S24-R24),IF(T24>=Q24,2+(R24-T24)/(R24-Q24),IF(T24>=P24,3+(Q24-T24)/(Q24-P24),IF(T24>=O24,4+(P24-T24)/(P24-O24),5))))))","v":1}]
["●",{"$f":"ISNUMBER(T25)","v":false},null,null,null,null,null,null,null,null,null,null,null,null,null,null,null,null,null,null,"%","",5]
[null,null," ผลลัพธ์การดำเนินการด้านงบประมาณ การเงิน และการเติบโต",null,null,null,null,null,null,null,null,null,null,null,null,null,null,null,null,{"$f":"IF(COUNT(T24:T25)>1,\"คะแนนเฉลี่ย\",SUM(T24:T25))","v":0},null,{"$f":"IF(T26=\"คะแนนเฉลี่ย\",AVERAGE(V24:V25),SUM(V24:V25))","v":0}]
["7.6 ผลลัพธ์ด้านประสิทธิผลของกระบวนการ",null,null,null,null,null,null,null,null,null,null,null,null,null,1,2,3,4,5]
["●",{"$f":"ISNUMBER(T28)","v":false},"RM 9","ร้อยละความสำเร็จของร้อยละเฉลี่ยถ่วงน้ำหนักในการบรรลุเป้าหมายตัวชี้วัดของกระบวนการที่สำคัญ ",null,null,null,null,null,null,null,null,null,null,65,70,75,80,85,null,"%",{"$f":"IF(ISNUMBER(T28)=FALSE,\"\",W28)","v":""},{"$f":"6-IF(R28>=S28,IF(T28<=S28,1,IF(T28<=R28,1+(T28-S28)/(R28-S28),IF(T28<=Q28,2+(T28-R28)/(Q28-R28),IF(T28<=P28,3+(T28-Q28)/(P28-Q28),IF(T28<=O28,4+(T28-P28)/(O28-P28),5))))),IF(T28>=S28,1,IF(T28>=R28,1+(S28-T28)/(S28-R28),IF(T28>=Q28,2+(R28-T28)/(R28-Q28),IF(T28>=P28,3+(Q28-T28)/(Q28-P28),IF(T28>=O28,4+(P28-T28)/(P28-O28),5))))))","v":1}]
["●",{"$f":"ISNUMBER(T29)","v":false},"RM 10","ร้อยละความสำเร็จเฉลี่ยถ่วงน้ำหนักความสำเร็จจากผลสัมฤทธิ์ของการดำเนินการตามแผนการจัดการความรู้ ",null,null,null,null,null,null,null,null,null,null,80,85,90,95,100,null,"%","",1]
["●",{"$f":"ISNUMBER(T30)","v":false},null,null,null,null,null,null,null,null,null,null,null,null,null,null,null,null,null,null,"%","",5]
[null,null," ผลลัพธ์การดำเนินการด้านประสิทธิผลของกระบวนการ",null,null,null,null,null,null,null,null,null,null,null,null,null,null,null,null,{"$f":"IF(COUNT(T28:T30)>1,\"คะแนนเฉลี่ย\",SUM(T28:T30))","v":0},null,{"$f":"IF(T31=\"คะแนนเฉลี่ย\",AVERAGE(V28:V30),SUM(V28:V30))","v":0}]
["ผลลัพธ์การดำเนินการ ",null,null,null,null,null,null,null,null,null,null,null,null,"คะแนนรวม",null,null,{"$f":"V31+V26+V22+V17+V12+V8","v":0},null,"คะแนนเฉลี่ย",null,null,{"$f":"Q32/6","v":0}]

{"sheet":"Chart","index":11,"n_rows":2,"n_cols":1,"rows_kept":2,"cut":false,"hidden":false,"merged":[[34,3,34,9],[0,0,0,13],[1,0,1,13]]}
["สรุปผลคะแนนการตรวจรับรองคุณภาพการบริหารจัดการภาครัฐระดับพื้นฐาน ฉบับที่ 2"]
[{"$f":"' ชื่อหน่วยงาน'!C11","v":"…………………………"}]

{"sheet":"Sheet2","index":12,"n_rows":72,"n_cols":2,"rows_kept":72,"cut":false,"hidden":true,"merged":[]}
[]
["หมวด 1 การนำองค์การ"]
["รหัส","คะแนน"]
["LD1",{"$f":"'หมวด 1'!G11/5","v":{"$error":"#VALUE!"}}]
["LD2",{"$f":"'หมวด 1'!G18/5","v":{"$error":"#VALUE!"}}]
["LD3",{"$f":"'หมวด 1'!G24/5","v":{"$error":"#VALUE!"}}]
["LD4",{"$f":"'หมวด 1'!G32/5","v":{"$error":"#VALUE!"}}]
["LD5",{"$f":"'หมวด 1'!G39/5","v":{"$error":"#VALUE!"}}]
["คะแนนรวม",{"$f":"'หมวด 1'!G40/5","v":{"$error":"#VALUE!"}}]
[]
["หมวด 2 การวางแผนเชิงยุทธศาสตร์"]
["รหัส","คะแนน"]
["SP1",{"$f":"'หมวด 2'!G10/5","v":{"$error":"#VALUE!"}}]
["SP2",{"$f":"'หมวด 2'!G17/5","v":{"$error":"#VALUE!"}}]
["SP3",{"$f":"'หมวด 2'!G25/5","v":{"$error":"#VALUE!"}}]
["SP4",{"$f":"'หมวด 2'!G33/5","v":{"$error":"#VALUE!"}}]
["คะแนนรวม",{"$f":"'หมวด 2'!G34/5","v":{"$error":"#VALUE!"}}]
[]
["หมวด 3 การให้ความสำคัญกับผู้รับบริการและผู้มีส่วนได้ส่วนเสีย"]
["รหัส","คะแนน"]
["CS1",{"$f":"'หมวด 3'!G9/5","v":{"$error":"#VALUE!"}}]
["CS2",{"$f":"'หมวด 3'!G15/5","v":{"$error":"#VALUE!"}}]
["CS3",{"$f":"'หมวด 3'!G21/5","v":{"$error":"#VALUE!"}}]
["CS4",{"$f":"'หมวด 3'!G28/5","v":{"$error":"#VALUE!"}}]
["CS5",{"$f":"'หมวด 3'!G34/5","v":{"$error":"#VALUE!"}}]
["คะแนนรวม",{"$f":"'หมวด 3'!G35/5","v":{"$error":"#VALUE!"}}]
[]
["หมวด 4 การวัด การวิเคราะห์ และการจัดการความรู้"]
["รหัส","คะแนน"]
["IT1",{"$f":"'หมวด 4'!G10/5","v":{"$error":"#VALUE!"}}]
["IT2",{"$f":"'หมวด 4'!G17/5","v":{"$error":"#VALUE!"}}]
["IT3",{"$f":"'หมวด 4'!G24/5","v":{"$error":"#VALUE!"}}]
["IT4",{"$f":"'หมวด 4'!G30/5","v":{"$error":"#VALUE!"}}]
["คะแนนรวม",{"$f":"'หมวด 4'!G31/5","v":{"$error":"#VALUE!"}}]
[]
["หมวด 5 การมุ่งเน้นบุคลากร"]
["รหัส","คะแนน"]
["HR1",{"$f":"'หมวด 5'!G9/5","v":{"$error":"#VALUE!"}}]
["HR2",{"$f":"'หมวด 5'!G15/5","v":{"$error":"#VALUE!"}}]
["HR3",{"$f":"'หมวด 5'!G23/5","v":{"$error":"#VALUE!"}}]
["HR4",{"$f":"'หมวด 5'!G31/5","v":{"$error":"#VALUE!"}}]
["คะแนนรวม",{"$f":"'หมวด 5'!G32/5","v":{"$error":"#VALUE!"}}]
[]
["หมวด 6 การมุ่งเน้นระบบการปฏิบัติการ"]
["รหัส","คะแนน"]
["PM1",{"$f":"'หมวด 6'!G11/5","v":{"$error":"#VALUE!"}}]
["PM2",{"$f":"'หมวด 6'!G18/5","v":{"$error":"#VALUE!"}}]
["PM3",{"$f":"'หมวด 6'!G25/5","v":{"$error":"#VALUE!"}}]
["PM4",{"$f":"'หมวด 6'!G31/5","v":{"$error":"#VALUE!"}}]
["PM5",{"$f":"'หมวด 6'!G37/5","v":{"$error":"#VALUE!"}}]
["คะแนนรวม",{"$f":"'หมวด 6'!G38/5","v":{"$error":"#VALUE!"}}]
[]
["หมวด 7 ผลลัพธ์การดำเนินการ (Results)"]
["รหัส","คะแนน"]
[7.1,{"$f":"('หมวด 7'!V8/5)","v":0}]
[7.2,{"$f":"'หมวด 7'!V12/5","v":0}]
[7.3,{"$f":"'หมวด 7'!V17/5","v":0}]
[7.4,{"$f":"'หมวด 7'!V22/5","v":0}]
[7.5,{"$f":"'หมวด 7'!V26/5","v":0}]
[7.6,{"$f":"'หมวด 7'!V31/5","v":0}]
["คะแนนเฉลี่ย",{"$f":"'หมวด 7'!V32/5","v":0}]
[]
["คะแนน PMQA"]
["รหัส","คะแนน"]
["LD",{"$f":"B9","v":{"$error":"#VALUE!"}}]
["SP",{"$f":"B17","v":{"$error":"#VALUE!"}}]
["CS",{"$f":"B26","v":{"$error":"#VALUE!"}}]
["IT",{"$f":"B34","v":{"$error":"#VALUE!"}}]
["HR",{"$f":"B42","v":{"$error":"#VALUE!"}}]
["PM",{"$f":"B51","v":{"$error":"#VALUE!"}}]
["RM",{"$f":"B61","v":0}]
[null,{"$f":"AVERAGE(B65:B71)","v":{"$error":"#VALUE!"}}]